Cogmind - Beta 15 @@@ ROGUE MODE // 2025.08.14 @ 18:40:48 Player: C0-2MO Result: Escaped! Performance ------------- Evolutions (9) 4500 Regions Visited (29) 5800 Robots Destroyed (361) 1805 Value Destroyed (23289) 23289 Prototype IDs (24) 480 Alien Tech Used (4) 800 Bonus (21125) 21125 TOTAL SCORE: 57799 Bonus ------- High Alert Combat Kills 2384 Follower Combat Kills 7615 Entered Garrisons 2200 Used RIF Installer 5500 Scanned by Researcher 500 Win 3000 Friendly Fire -74 Cogmind --------- Core Integrity 533/1600 Matter 290/300 Energy 141/150 System Corruption 28% Temperature Cool (6) Movement Walking (120) Location To Epsilon Eridani Parts ------- > --- POWER (4) -------- Micro Antimatter Reactor > --- PROPULSION (6) --- Myomer Leg Myomer Leg Centrium Leg > --- UTILITY (11) ----- Advanced Heat Sink Advanced Heat Sink High-capacity Storage Unit Advanced Signal Interpreter Advanced Target Analyzer Relay Coupler [Sentry] (5) > --- WEAPON (4) ------- Phase Gun Enhanced Hardcell Cannon > --- INVENTORY (20) --- Micro Antimatter Reactor Myomer Leg Centrium Leg Medium Storage Unit Relay Coupler [Proto] (16) Relay Coupler [Proto] (16) Core Cannon Fusion Bomb Launcher Advanced Remote Datajack Advanced Remote Datajack Peak State ------------ > --- POWER ------------ Quantum Reactor Quantum Reactor Light Quantum Reactor Reinforced Quantum Reactor > --- PROPULSION ------- Myomer Leg Myomer Leg Biometal Leg Biometal Leg Centrium Leg High-density Centrium Leg > --- UTILITY ---------- Advanced Cooling System Advanced Cooling System High-capacity Storage Unit Advanced Cloaking Device Advanced Powered Armor Advanced Hacking Suite Relay Coupler [NC] Relay Coupler [Swarmer] Relay Coupler [Duelist] Relay Coupler [Sentry] Relay Coupler [Proto] > --- WEAPON ----------- Enhanced Quantum Rifle Advanced Remote Datajack Sigix Broadsword > --- INVENTORY -------- Light Antimatter Reactor Micro Antimatter Reactor Quantum Reactor Light Quantum Reactor Myomer Leg Biometal Leg Improved Thunder Leg Advanced Coolant Injector Medium Reflective Plating Advanced Powered Armor Relay Coupler [Heavy] Relay Coupler [Proto] Relay Coupler [Proto] Enhanced Quantum Rifle Enhanced Quantum Rifle Core Cannon Fusion Bomb Launcher Sigix Terminator [Rating: 204] Favorites ----------- Power Quantum Reactor Engine Light Angular Momentum Engine Power Core Light Nuclear Core Reactor Quantum Reactor Propulsion Aluminum Leg Leg Aluminum Leg Utility High-capacity Storage Unit Device Advanced Cooling System Storage High-capacity Storage Unit Processor Experimental Targeting Computer Hackware Relay Coupler [Sentry] Protection Layered Light Armor Plating Artifact Phase Redirector Weapon Shotgun Energy Gun Enhanced Quantum Rifle Energy Cannon Enhanced Nova Cannon Ballistic Gun Shotgun Ballistic Cannon Enhanced Hardcell Cannon Launcher Grenade Launcher Special Weapon Advanced Remote Datajack Slashing Weapon Sigix Broadsword Build | -11 -10 -10 -9 -9 -8 -8 -8 -8 -7 -7 -6 -6 -6 -6 -5 -5 -4 -4 -4 -4 -3 -3 -3 -3 -2 -2 -2 -2 -1 ------- Run | Yrd Mat Min Mat Min Mat Gar Sto Gar Fac Gar Fac Gar Fac Gar Fac Gar Fac Gar Fac Gar Res Gar Res Gar Res Qua Sec Gar Acc Slots Evolved 18 | . . . 2 . 2 . . . 2 . 2 . . . 2 . 2 . . . 2 . . . 2 . . . 2 Power 3 | . . . . . . . . . . . . . . . 1 . . . . . . . . . 2 . . . . Propulsion 4 | . . . 1 . 1 . . . 2 . . . . . . . . . . . . . . . . . . . . Utility 9 | . . . 1 . . . . . . . 2 . . . 1 . 2 . . . 2 . . . . . . . 1 Weapon 2 | . . . . . 1 . . . . . . . . . . . . . . . . . . . . . . . 1 Parts Attached 351 | 7 7 2 13 5 2 12 4 25 15 15 18 29 10 19 2 8 3 18 2 7 . 7 5 20 10 13 2 19 52 Power 46 | 1 . . 1 1 . 1 . 3 1 2 . 4 . 2 1 . . 3 . . . . 1 2 3 4 2 3 11 Engine 7 | 1 . . 1 1 . . . 1 . 1 . 2 . . . . . . . . . . . . . . . . . Core 6 | . . . . . . 1 . 2 1 1 . . . 1 . . . . . . . . . . . . . . . Reactor 33 | . . . . . . . . . . . . 2 . 1 1 . . 3 . . . . 1 2 3 4 2 3 11 Propulsion 107 | 2 2 . 5 3 . 6 1 10 5 3 6 11 3 4 . 2 . 7 . 1 . 2 1 8 3 4 . 3 15 Treads . | . . . . . . . . . . . . . . . . . . . . . . . . . . . . . . Leg 107 | 2 2 . 5 3 . 6 1 10 5 3 6 11 3 4 . 2 . 7 . 1 . 2 1 8 3 4 . 3 15 Wheel . | . . . . . . . . . . . . . . . . . . . . . . . . . . . . . . Hover . | . . . . . . . . . . . . . . . . . . . . . . . . . . . . . . Flight . | . . . . . . . . . . . . . . . . . . . . . . . . . . . . . . Utility 120 | 2 2 1 2 . 2 3 . 7 5 6 5 8 4 9 1 5 2 6 2 4 . 4 2 6 1 4 . 10 17 Device 34 | 1 . 1 . . . 1 . 1 2 . 2 4 1 3 . . . 1 . . . . 1 1 . . . 5 10 Storage 6 | 1 1 . . . 1 . . . . . . . . . . . . . . 1 . . . . . . . . 2 Processor 8 | . 1 . . . . . . . 2 . . 1 1 . . . . . . . . 1 . . . . . . 2 Hackware 56 | . . . . . . . . 4 . 6 3 1 1 6 1 5 2 5 2 3 . 3 1 5 1 2 . 3 2 Protection 15 | . . . 2 . 1 2 . 2 1 . . 2 1 . . . . . . . . . . . . 1 . 2 1 Artifact 1 | . . . . . . . . . . . . . . . . . . . . . . . . . . 1 . . . Weapon 78 | 2 3 1 5 1 . 2 3 5 4 4 7 6 3 4 . 1 1 2 . 2 . 1 1 4 3 1 . 3 9 Energy Gun 24 | 1 . . 2 . . . . . 2 1 3 4 1 2 . . . 1 . . . . . 1 1 . . . 5 Energy Cannon 3 | . . . . . . . . . 1 . . . . . . . . . . . . . . 1 . . . 1 . Ballistic Gun 22 | 1 2 1 2 1 . 1 2 4 . 1 1 2 . . . . 1 1 . . . . . 1 . . . . 1 Ballistic Cannon 9 | . . . . . . . . . . . . . 1 . . 1 . . . 1 . . . 1 2 . . 1 2 Launcher 4 | . . . 1 . . 1 . . . . . . . 1 . . . . . . . . . . . . . . 1 Special Weapon 11 | . 1 . . . . . . 1 . 1 3 . . 1 . . . . . 1 . 1 1 . . . . 1 . Impact Weapon . | . . . . . . . . . . . . . . . . . . . . . . . . . . . . . . Slashing Weapon 5 | . . . . . . . 1 . 1 1 . . 1 . . . . . . . . . . . . 1 . . . Piercing Weapon . | . . . . . . . . . . . . . . . . . . . . . . . . . . . . . . Special Melee Weapon . | . . . . . . . . . . . . . . . . . . . . . . . . . . . . . . Unidentified Prototypes 12 | . . . 2 . . . . . 1 . . 1 1 . . . 1 . . . . . 1 . 1 3 . . 1 Parts Lost 123 | . 1 . 1 . . 2 3 11 . 4 . 19 2 1 . . . . 1 2 . 3 1 7 . 1 . 18 46 Power 24 | . . . 1 . . . . 1 . 2 . 2 . . . . . . . . . 1 . 1 . . . 6 10 Propulsion 36 | . . . . . . . 2 6 . 2 . 7 2 . . . . . 1 . . . . 1 . . . 3 12 Utility 37 | . 1 . . . . 1 . . . . . 3 . 1 . . . . . 1 . 2 1 3 . 1 . 6 17 Weapon 26 | . . . . . . 1 1 4 . . . 7 . . . . . . . 1 . . . 2 . . . 3 7 Highest Loss Streak 15 | . 1 . 1 . . 1 3 9 . 2 . 12 1 1 . . . . 1 1 . 2 1 2 . 1 . 11 15 To Critical Strikes 3 | . . . . . . . . . . . . . 1 . . . . . . . . . . 1 . . . . 1 Average Backups 16 | . 7 9 9 9 9 16 19 15 19 19 19 17 19 18 18 17 18 17 18 18 16 17 18 18 17 17 17 14 14 Power 1 | . 1 1 1 1 1 1 1 1 2 1 1 1 2 2 1 1 1 1 2 2 2 1 1 2 . 2 3 1 2 Propulsion 3 | . 2 3 1 1 1 4 4 3 4 3 3 3 3 3 4 4 6 5 4 4 4 4 6 3 2 3 4 3 2 Utility 5 | . . . . 2 4 6 10 7 7 10 8 5 7 5 7 5 3 3 5 5 3 4 3 6 9 6 5 4 4 Weapon 4 | . 4 5 6 5 3 3 2 2 4 4 5 4 5 5 5 4 6 6 5 5 5 4 4 4 3 4 3 4 4 Tool/Special . | . . . . . . . . . . . . . . . . . . . . . . . . . . . . . . Unused Backups 30 | . . . 3 . . 3 . 1 1 1 2 3 1 3 . . . 2 . . . 1 1 1 . 1 . 3 3 Power 5 | . . . 2 . . . . . . 1 . . . 1 . . . 1 . . . . . . . . . . . Propulsion 4 | . . . . . . 1 . . . . 1 . . . . . . 1 . . . . 1 . . . . . . Utility 13 | . . . . . . 2 . 1 1 . 1 2 1 1 . . . . . . . 1 . . . . . 1 2 Weapon 7 | . . . 1 . . . . . . . . 1 . 1 . . . . . . . . . 1 . 1 . 2 . Tool/Special 1 | . . . . . . . . . . . . . . . . . . . . . . . . . . . . . 1 Average Slot Usage (%) 95 | . 99 100 98 99 99 100 98 95 98 96 97 94 99 98 92 95 94 96 90 92 85 88 89 88 99 97 100 88 88 Engine 3 | . 14 14 10 11 9 5 1 2 . . 6 2 6 1 . . . . . . . . . . . . . . . Core 1 | . . . . . . 3 7 6 7 5 . . . . . . . . . . . . . . . . . . . Reactor 5 | . . . . . . . . . . . . 3 . 4 9 11 10 10 10 10 9 8 9 8 16 17 17 15 14 Leg 31 | . 28 28 33 32 35 36 35 34 45 43 40 39 39 40 35 35 31 30 22 25 23 23 23 23 26 26 26 25 22 Device 8 | . 2 7 11 11 9 9 9 6 2 . 5 8 6 11 9 11 7 14 6 7 9 8 9 8 8 8 8 8 11 Storage 6 | . 14 14 11 11 9 9 9 8 7 7 6 6 6 6 5 5 5 5 5 5 4 4 4 4 4 4 4 4 4 Processor 2 | . 11 6 . . . . . . 6 4 . 4 6 6 5 5 5 5 5 5 4 4 4 1 . . . . 2 Hackware 11 | . . . . . . . . 2 . 6 15 5 5 5 5 5 12 13 24 21 19 21 18 25 30 26 26 22 19 Protection 3 | . . . 10 11 9 9 9 8 5 3 1 3 6 . 1 . 4 . . . . . 4 . . . . 1 2 Energy Gun 5 | . 2 . 2 . 9 9 7 . 5 10 13 11 13 14 11 7 . 2 9 6 4 2 . 1 . . . . 4 Ballistic Gun 7 | . 25 28 18 17 18 17 19 18 2 . . 5 . . . . 4 4 . 1 . 1 3 2 . . . . . Ballistic Cannon 1 | . . . . . . . . . . . . . 1 . . 4 5 4 . 2 4 6 4 4 4 1 4 . 1 Special Weapon 2 | . . . . 3 . . . 1 . 4 2 . 2 4 5 3 5 3 4 3 4 1 3 2 3 3 3 3 1 Slashing Weapon 1 | . . . . . . . . 4 6 5 . 1 1 . . . . . . 1 . . . . . 1 . 2 3 Peak Build Rating 204 | 7 12 12 21 17 21 32 31 32 41 42 64 72 68 94 97 112 120 139 135 137 133 142 150 160 171 197 191 203 204 Average Rating 90 | 4 11 11 15 16 20 26 29 27 37 39 58 66 64 84 95 103 116 120 127 131 133 134 146 142 164 184 190 177 180 On Entrance 85 | . 7 12 12 13 16 21 31 25 30 41 40 64 68 62 92 97 109 119 137 123 133 133 134 149 147 170 191 191 191 Naked Turns . | . . . . . . . . . . . . . . . . . . . . . . . . . . . . . . Heaviest Build 184 | 13 20 20 29 29 62 67 64 65 66 65 69 84 81 94 105 134 133 131 105 125 112 122 128 130 184 176 183 171 169 Greatest Support 182 | 20 20 20 33 33 40 43 43 48 75 75 115 115 105 137 137 142 142 176 176 168 168 173 176 180 174 182 182 182 176 Greatest Overweight (x) 3 | . . . . . 1 1 2 3 . . . . . . . . . . . . . . . . 1 . 1 1 1 Average Overweight (x) . | . . . . . . 1 1 . . . . . . . . . . . . . . . . . . . . . . Largest Inventory Capacity 20 | 8 10 10 10 10 20 20 20 20 20 20 20 20 20 20 20 20 20 20 20 20 20 20 20 20 20 20 20 20 20 Average Capacity 18 | 7 9 10 10 10 11 20 20 19 20 20 20 20 20 20 20 20 20 20 20 20 20 20 20 20 20 20 20 20 20 Most Carried 20 | 1 10 10 10 10 11 20 20 20 20 20 20 20 20 20 20 20 20 20 20 20 17 20 20 20 20 20 20 20 20 Average Carried 16 | . 7 9 9 9 9 16 19 15 19 19 19 17 19 18 19 18 18 18 19 19 17 18 18 19 18 19 20 16 16 Final Capacity 20 | 8 10 10 10 10 20 20 20 20 20 20 20 20 20 20 20 20 20 20 20 20 20 20 20 20 20 20 20 20 20 Final Carried 20 | 1 9 10 10 10 11 20 18 20 20 20 20 20 20 20 19 20 17 20 20 17 17 18 20 20 19 20 20 19 11 Class Distribution -------------------- 15% | Botlord-Mutant 14% | Mutant 13% | Bothacker-Gunner 11% | Scavenger-Tank 11% | Botlord-Tank 7% | Botlord-Gunner 6% | Commander-Gunner 5% | Scavenger-Mutant 4% | Bothacker-Mutant 3% | Scavenger-Gunner Dominant Class ---------------- Mutant | -10/Materials Mutant | -10/Mines Mutant | -9/Materials Mutant | -9/Mines Tank | -8/Materials Scavenger-Tank | -8/Garrison Scavenger-Tank | -8/Storage Scavenger-Tank | -8/Garrison Scavenger-Mutant | -7/Factory Bothacker-Mutant | -7/Garrison Bothacker-Gunner | -6/Factory Scavenger-Gunner | -6/Garrison Bothacker-Gunner | -6/Factory Bothacker-Gunner | -6/Garrison Bothacker-Gunner | -5/Factory Bothacker-Gunner | -5/Garrison Bothacker-Gunner | -4/Factory Commander-Gunner | -4/Garrison Commander-Gunner | -4/Factory Botlord-Gunner | -4/Garrison Botlord-Gunner | -3/Research Botlord-Gunner | -3/Garrison Botlord-Tank | -3/Research Botlord-Tank | -3/Garrison Botlord-Tank | -2/Research Botlord-Tank | -2/Quarantine Botlord-Tank | -2/Section 7 Botlord-Mutant | -2/Garrison Botlord-Mutant | -1/Access Resources | -11 -10 -10 -9 -9 -8 -8 -8 -8 -7 -7 -6 -6 -6 -6 -5 -5 -4 -4 -4 -4 -3 -3 -3 -3 -2 -2 -2 -2 -1 ----------- Run | Yrd Mat Min Mat Min Mat Gar Sto Gar Fac Gar Fac Gar Fac Gar Fac Gar Fac Gar Fac Gar Res Gar Res Gar Res Qua Sec Gar Acc Matter Collected 13386 | 248 332 58 565 330 52 638 209 998 342 373 517 706 184 601 . 257 112 684 123 345 . 609 286 1304 207 693 313 833 1467 Remotely . | . . . . . . . . . . . . . . . . . . . . . . . . . . . . . . Salvage Created 14088 | 70 256 75 859 297 56 806 315 762 863 190 320 1330 356 565 . 268 . 595 . 436 . 321 244 1166 . 865 424 926 1723 Parts 732 | 6 20 6 74 22 2 52 22 53 36 6 12 45 15 25 . 15 . 20 . 18 . 17 16 57 . 46 14 51 82 Haulers Intercepted 1 | . . . . . . . . . . . 1 . . . . . . . . . . . . . . . . . . Recyclers Shooed 2 | . . . . 1 . . . . . . . . . . . . . . . . . . . . 1 . . . . Parts Field Recycled . | . . . . . . . . . . . . . . . . . . . . . . . . . . . . . . Retrieved Matter . | . . . . . . . . . . . . . . . . . . . . . . . . . . . . . . Parts Self-Destructed . | . . . . . . . . . . . . . . . . . . . . . . . . . . . . . . Prevented . | . . . . . . . . . . . . . . . . . . . . . . . . . . . . . . Kills | -11 -10 -10 -9 -9 -8 -8 -8 -8 -7 -7 -6 -6 -6 -6 -5 -5 -4 -4 -4 -4 -3 -3 -3 -3 -2 -2 -2 -2 -1 ------- Run | Yrd Mat Min Mat Min Mat Gar Sto Gar Fac Gar Fac Gar Fac Gar Fac Gar Fac Gar Fac Gar Res Gar Res Gar Res Qua Sec Gar Acc Combat Hostiles Destroyed 319 | . 10 5 25 8 1 24 8 20 12 6 4 27 7 15 . 7 . 14 . 6 . 11 3 31 . 8 10 17 40 Melee 24 | . . . . . . . . 2 . 3 . . . . . . . . . . . . . 1 . 2 . 8 8 Guns 156 | . 10 5 17 8 1 20 8 11 6 . 3 23 5 10 . 5 . 5 . 3 . 2 2 6 . 2 . . 4 Cannons 59 | . . . . . . . . . 6 . 1 . . . . 2 . 6 . 3 . 5 1 5 . 4 5 9 12 AOE 73 | . . . 8 . . 4 . 7 . 2 . 3 . 4 . . . 3 . . . 3 . 18 . . 5 . 16 Classes Destroyed 22 | 2 4 . 4 1 . 3 . 2 . . 1 . . 2 . . . . . 1 . . . . . 1 . 1 . Worker 9 | . . . 3 . . . . . 3 . 1 . . . . . . . . . . . . . . 1 1 . . Builder 11 | . . . 4 . . . . . . . . . . . . . . . . . . . . . . 3 1 . 3 Tunneler 4 | 1 . . 1 1 . . . . . . . . . . . . . . . . . . . . . . . . 1 Hauler 1 | . . . . . . . . . . . 1 . . . . . . . . . . . . . . . . . . Recycler 7 | 1 . . . . . . 1 . 3 . . . . . . . . . . . . . . . . 1 . . 1 Mechanic 1 | . 1 . . . . . . . . . . . . . . . . . . . . . . . . . . . . Operator 2 | . . . 1 . . . . . . . . . . . . . . . . . . . . . . 1 . . . Watcher 7 | . 1 . 1 . . . . 1 . . 1 . . . . . . . . . . . 1 . . . 1 . 1 Swarmer 83 | . 8 5 6 . . 7 4 . 3 3 . 9 2 4 . 2 . 7 . 2 . 3 . 10 . . 1 1 6 Cutter 12 | . . . . . . . . 3 . . . . . 1 . 2 . . . . . 3 . 3 . . . . . Saboteur 1 | . . . . . . . . . . . . . . . . . . . . . . . . . . . . 1 . Grunt 101 | . 2 . 12 7 . 9 2 6 4 . 1 16 2 2 . . . 3 . . . 1 . 9 . 5 7 5 8 Brawler 1 | . . . . . . . . . . . . . . 1 . . . . . . . . . . . . . . . Duelist 4 | . . . . . . 2 . . . . . . . 1 . . . . . . . . . . . . . 1 . Researcher 1 | . . . . . . . . . . . . . . . . . . . . . . . . . . 1 . . . Sentry 29 | . . . 7 . 1 2 2 4 1 . . 1 . 1 . 1 . 4 . 1 . . 1 . . . . . 3 Demolisher 1 | . . . . . . . . . . . . . . . . . . . . 1 . . . . . . . . . Specialist 7 | . . . . . . 1 . . . . . . 2 1 . . . . . . . . . . . . . . 3 Hunter 26 | . . . . . . . . 3 1 2 . 1 . . . 1 . . . . . 1 1 4 . 1 2 1 8 Programmer 47 | . . . . . . 3 . 4 2 1 3 . 1 3 . 1 . . . 2 . 3 1 4 . 2 . 6 11 Behemoth 5 | . . . . . . . . . . . . . . 1 . . . . . . . . . 1 . . . 2 1 Assembled 1 | . . . . 1 . . . . . . . . . . . . . . . . . . . . . . . . . Thug 1 | . . . . . . . . . 1 . . . . . . . . . . . . . . . . . . . . Best Kill Streak 13 | 2 4 3 10 5 1 4 5 3 4 3 2 5 2 4 . 3 . 4 . 2 . 6 1 13 . 6 8 6 10 Combat Bots Only 13 | . 3 3 8 3 1 4 5 3 3 3 1 5 2 4 . 3 . 4 . 2 . 6 1 13 . 2 7 6 8 Max Kills in Single Turn 10 | 1 1 1 4 1 1 2 2 2 2 1 1 2 1 4 . 1 . 2 . 1 . 1 1 4 . 5 5 2 10 Gunslinging 1 | . . . . . . 1 . . . . . 1 . . . . . . . . . . . . . . . . . Exploded 6 | . . . 3 . . 2 . 2 . 1 . 2 . 4 . . . 2 . . . 1 . 4 . . 4 . 6 Melee 1 | . . . . . . . . 1 . 1 . . . . . . . . . . . . . 1 . 1 . 1 1 Uniques/NPCs Destroyed . | . . . . . . . . . . . . . . . . . . . . . . . . . . . . . . Combat | -11 -10 -10 -9 -9 -8 -8 -8 -8 -7 -7 -6 -6 -6 -6 -5 -5 -4 -4 -4 -4 -3 -3 -3 -3 -2 -2 -2 -2 -1 -------- Run | Yrd Mat Min Mat Min Mat Gar Sto Gar Fac Gar Fac Gar Fac Gar Fac Gar Fac Gar Fac Gar Res Gar Res Gar Res Qua Sec Gar Acc Hostile Shots Fired 2824 | . 49 14 118 21 6 100 83 192 62 90 58 271 35 90 . 32 2 78 7 41 . 68 50 247 23 122 68 201 696 Missed 904 | . 16 4 41 8 3 22 20 50 30 34 23 70 10 24 . 11 1 32 1 15 . 26 17 88 10 44 21 58 225 Deflected 5 | . . . . . . . . . . . . . . . . . . . . . . . . 5 . . . . . Hits 1920 | . 33 10 77 13 3 78 63 142 32 56 35 201 25 66 . 21 1 46 6 26 . 42 33 159 13 78 47 143 471 Melee 13 | . . . . . . . . 5 . . . . . . . 1 . . . 1 . 2 . 2 . . . 2 . Projectile 1907 | . 33 10 77 13 3 78 63 137 32 56 35 201 25 66 . 20 1 46 6 25 . 40 33 157 13 78 47 141 471 AOE 15 | . . . . . . . . 2 . . . . . 1 . 3 . . 4 3 . . . 2 . . . . . Critical Strikes 78 | . . . 5 . . 1 . 8 1 1 3 7 4 2 . . 1 3 . 1 . . . 7 . 5 1 11 17 Part Disruptions 8 | . . . . . . . . 2 . . . . . 2 . . . . . . . . . . . . . 1 3 Damage Taken 33138 | . 266 85 996 149 44 916 516 2026 430 785 453 2906 413 962 . 271 22 651 324 545 . 683 589 3244 91 1025 611 3493 10642 Core 3304 | . 56 28 129 35 . 100 89 208 69 84 27 319 86 150 . 22 . 67 . 36 . 29 61 229 . 172 160 307 841 Absorbed by Shields 5256 | . . . . . . 270 244 263 . . . 540 . 245 . 183 . 397 31 161 . 268 179 596 89 850 521 419 . Redirected to Core 292 | . . . . . . . . . . . . . . . . . . . . . . . . . . 115 128 49 . Ignored by Resistances 110 | . . . . . . . . . . . . . 45 . . . . . . . . . . . . . . 65 . Regen/Repaired (Parts) 4021 | . . . 209 . . . . . . 85 24 . 66 351 . 97 . . . . . 590 178 . . 184 . 540 1697 Core Remaining (%) 63 | 100 . 66 . 59 . . . 27 . 78 . . . 31 . 97 . . . 91 . . . 75 . . . 38 33 Volleys Fired 1128 | 4 30 6 54 41 3 115 21 76 29 34 52 70 24 74 . 27 12 44 14 35 . 40 28 75 21 37 24 51 87 Largest 4 | 2 2 2 2 2 2 3 3 3 2 3 3 3 3 3 . 3 1 3 2 3 . 3 3 3 3 3 3 2 4 Hottest 300 | 70 123 46 78 100 78 102 98 76 100 128 225 225 203 228 . 207 5 178 159 192 . 163 152 225 243 243 230 300 300 Shots Fired 2035 | 8 59 12 101 63 6 213 59 145 50 43 91 179 54 127 . 45 12 75 16 63 . 74 47 148 31 57 46 62 149 Gun 1313 | 8 57 12 95 47 6 211 59 121 22 21 58 174 43 90 . 20 . 33 4 41 . 22 19 73 3 11 . . 63 Cannon 364 | . . . . . . . . . 28 . 5 . 2 . . 11 . 22 . 6 . 37 18 48 14 29 41 41 62 Launcher 57 | . . . 6 . . 2 . 13 . 3 . 2 . 1 . . . 2 . . . 3 . 10 . 1 5 . 9 Special 301 | . 2 . . 16 . . . 11 . 19 28 3 9 36 . 14 12 18 12 16 . 12 10 17 14 16 . 21 15 Kinetic 922 | 4 50 12 88 47 3 105 47 116 1 3 6 72 2 . . 11 . 45 . 16 . 43 36 88 7 9 21 18 72 Thermal 774 | 4 9 . 7 16 3 106 12 5 49 18 57 102 43 90 . 20 . 10 4 31 . 16 1 33 10 31 20 23 54 Explosive 56 | . . . 6 . . 2 . 13 . 3 . 2 . 1 . . . 2 . . . 3 . 10 . 1 5 . 8 Electromagnetic . | . . . . . . . . . . . . . . . . . . . . . . . . . . . . . . Robot Hit Streak 23 | 2 6 3 23 8 4 9 7 8 15 12 13 17 16 23 . 12 6 17 3 14 . 10 9 12 5 7 4 7 14 Robot Miss Streak 10 | 2 8 4 7 6 1 8 7 3 2 3 5 4 2 3 . 5 1 2 3 4 . 6 5 3 3 3 5 5 10 Penetration Max 2 | . . . . . . . . . . . . 1 . . . . . 1 . 1 . . 1 2 . . . 2 1 Secondary Targets 17 | . . . . . . 6 1 2 . . . 7 . . . . . . . . . . . . . . . . 1 Max Gunslinging Chain 1 | . . . . . . 1 1 1 . . . 1 . . . . . . . . . . . . . . . . 1 Shots Hit Robots 1365 | 3 33 6 79 29 4 97 38 97 39 41 59 127 38 93 . 29 9 50 9 54 . 43 32 91 20 47 22 54 122 Core Hits 669 | 2 17 5 58 18 1 50 15 44 25 10 18 60 9 24 . 11 . 19 . 16 . 29 8 80 3 21 26 19 81 Critical Kills 11 | . . . 1 . . . . . . . 1 . . . . . . . . . . . . 2 . . . 2 5 Critical Parts Destroyed 18 | . . . . . . . . 1 . . . . . . . . . 1 . 1 . . . 3 . . . 8 4 Critical Strikes 75 | . . . 1 . . 1 . 3 1 1 5 1 6 2 . . . 3 . 5 . 1 . 9 . . 4 14 18 Burn 15 | . . . . . . 1 . . . 1 4 1 6 2 . . . . . . . . . . . . . . . Meltdown 1 | . . . . . . . . . . . . . . . . . . . . . . . . 1 . . . . . Destroy 32 | . . . 1 . . . . 1 . . 1 . . . . . . 1 . 1 . . . 5 . . . 13 9 Blast 18 | . . . . . . . . . . . . . . . . . . 2 . 2 . 1 . 3 . . 4 . 6 Sever 9 | . . . . . . . . 2 1 . . . . . . . . . . 2 . . . . . . . 1 3 Melee Attacks 212 | . . . . . . . 2 24 5 21 3 3 3 1 . . . 16 2 9 . . 1 2 . 30 . 28 62 Impact . | . . . . . . . . . . . . . . . . . . . . . . . . . . . . . . Slashing 212 | . . . . . . . 2 24 5 21 3 3 3 1 . . . 16 2 9 . . 1 2 . 30 . 28 62 Piercing . | . . . . . . . . . . . . . . . . . . . . . . . . . . . . . . Sneak Attacks 11 | . . . . . . . . 1 4 1 . . . . . . . . . . . . . . . 2 . . 3 Combat Hostiles 4 | . . . . . . . . . . 1 . . . . . . . . . . . . . . . . . . 3 Follow-up Attacks 1 | . . . . . . . . . . 1 . . . . . . . . . . . . . . . . . . . Damage Inflicted 58068 | 39 536 94 2246 500 78 1847 541 1945 1149 739 935 2680 656 1999 . 415 . 1621 105 1556 . 1827 721 6437 423 2655 2350 5180 18794 Guns 17335 | 39 536 94 1307 500 78 1694 541 1173 332 359 855 2528 656 1602 . 275 . 631 88 767 . 362 263 1015 89 210 . . 1341 Cannons 12786 | . . . . . . . . . 521 . 75 . . . . 140 . 433 . 199 . 798 458 1267 334 535 1098 4158 2770 Explosions 21034 | . . . 906 . . 153 . 576 . 132 . 152 . 397 . . . 557 . . . 667 . 4119 . 501 1217 6 11651 Melee 6766 | . . . . . . . . 196 296 248 . . . . . . . . . 573 . . . 36 . 1384 . 1001 3032 Ramming 147 | . . . 33 . . . . . . . 5 . . . . . . . 17 17 . . . . . 25 35 15 . Kinetic 14047 | 15 473 94 1270 500 32 1189 346 1118 11 56 117 871 . . . 140 . 857 . 372 . 840 721 1598 162 197 677 615 1776 Thermal 25352 | 24 63 . 37 . 46 505 195 55 842 303 813 1657 656 1602 . 275 . 207 88 594 . 320 . 684 261 548 421 3543 11613 Explosive 11756 | . . . 906 . . 153 . 576 . 132 . 152 . 397 . . . 557 . . . 667 . 4119 . 501 1217 6 2373 Electromagnetic . | . . . . . . . . . . . . . . . . . . . . . . . . . . . . . . Impact . | . . . . . . . . . . . . . . . . . . . . . . . . . . . . . . Slashing 6766 | . . . . . . . . 196 296 248 . . . . . . . . . 573 . . . 36 . 1384 . 1001 3032 Piercing . | . . . . . . . . . . . . . . . . . . . . . . . . . . . . . . Highest Corruption 28 | . . . . . . 3 3 8 3 3 2 2 2 2 . . . . . 1 . . . 3 . 9 9 14 28 Average Corruption 5 | . . . . . . 2 3 6 1 2 1 2 2 2 . . . . . 1 . . . 2 . 8 9 12 10 Corruption Purged 10 | . . . . . . . . . 3 . . . . . . . . . . . . . . . . . . . 7 Corruption Blocked . | . . . . . . . . . . . . . . . . . . . . . . . . . . . . . . Effects 250 | . . . . . . 22 7 42 4 16 1 9 11 16 . . . . . 3 . . . 13 . 16 6 42 42 Message Errors 60 | . . . . . . 8 1 9 . 4 1 2 4 3 . . . . . 1 . . . 5 . 4 2 7 9 Matter Fused 47 | . . . . . . 6 2 9 1 4 . . . 1 . . . . . 1 . . . 1 . 5 1 8 8 Heat Flow Errors 25 | . . . . . . 2 . 5 2 2 . 1 2 2 . . . . . 1 . . . . . 4 . 1 3 Energy Discharges 40 | . . . . . . 3 2 2 . 1 . 3 3 4 . . . . . . . . . 2 . 2 . 10 8 Parts Rejected 5 | . . . . . . . . 1 . 1 . . . 1 . . . . . . . . . . . . . . 2 Parts Fused 1 | . . . . . . 1 . . . . . . . . . . . . . . . . . . . . . . . Data Loss (minor) 33 | . . . . . . 2 1 5 1 4 . 1 2 3 . . . . . . . . . 1 . 1 . 7 5 Data Loss (major) 10 | . . . . . . . . 2 . . . . . 1 . . . . . . . . . . . . 1 4 2 Misfires 7 | . . . . . . . . 2 . . . . . . . . . . . . . . . 1 . . 1 1 2 Alerts 7 | . . . . . . . . 3 . . . 1 . 1 . . . . . . . . . 1 . . 1 . . Misdirections 3 | . . . . . . . . . . . . . . . . . . . . . . . . . . . . 2 1 Weapon Failures 12 | . . . . . . . 1 4 . . . 1 . . . . . . . . . . . 2 . . . 2 2 Overload Shots . | . . . . . . . . . . . . . . . . . . . . . . . . . . . . . . Overflow Damage 2848 | . . . 23 . . . . 29 24 45 . . . . . . . 21 . 68 . 77 . 231 18 240 16 812 1244 Projectiles 1375 | . . . . . . . . . . . . . . . . . . . . . . 72 . 51 18 . . 670 564 Explosions 872 | . . . 23 . . . . . . 2 . . . . . . . 21 . . . 5 . 180 . 15 14 . 612 Melee 601 | . . . . . . . . 29 24 43 . . . . . . . . . 68 . . . . . 225 2 142 68 Knockbacks 63 | . . . 1 . . . . . . . . . . . . 3 . . . 2 . 26 1 8 1 1 2 2 16 Impact 1 | . . . 1 . . . . . . . . . . . . . . . . . . . . . . . . . . Kinetic 57 | . . . . . . . . . . . . . . . . 3 . . . 2 . 23 1 8 1 1 2 2 14 Secondary 5 | . . . . . . . . . . . . . . . . . . . . . . 3 . . . . . . 2 Self-Inflicted Damage 657 | . . . 16 . . 44 . 91 . 11 . . . 44 . . . . . . . 43 . 247 . . 14 . 147 Shots 19 | . . . 1 . . 2 . 3 . 1 . . . 1 . . . . . . . 1 . 5 . . 1 . 4 Rammed . | . . . . . . . . . . . . . . . . . . . . . . . . . . . . . . Targets Rammed 14 | . . . 6 . . . . 1 . . 1 . . . . . . . 1 1 . . . . . 1 2 1 . Kicked 14 | . . . 6 . . . . 1 . . 1 . . . . . . . 1 1 . . . . . 1 2 1 . Crushed . | . . . . . . . . . . . . . . . . . . . . . . . . . . . . . . Highest Temperature 704 | 27 63 . 62 120 58 313 356 247 270 150 312 304 198 199 . 191 . 27 9 136 . 9 6 116 351 201 349 704 448 Average Temperature 88 | 12 26 . 17 39 31 83 129 53 58 52 76 97 102 89 . 87 . 7 6 38 . 3 4 29 170 78 150 207 133 Received Heat Transfer 5552 | . . . 444 54 9 318 179 574 81 42 99 1026 153 154 . 16 37 130 14 19 . 64 33 197 . 82 127 1277 423 Effects 25 | . . . . . . 1 2 . . . . . . . . . . . . . . . . . 1 . 3 17 1 Shutdowns 10 | . . . . . . . . . . . . . . . . . . . . . . . . . . . 2 8 . Energy Bleed 4 | . . . . . . 1 1 . . . . . . . . . . . . . . . . . 1 . . 1 . Interference 2 | . . . . . . . 1 . . . . . . . . . . . . . . . . . . . . . 1 Matter Decay 2 | . . . . . . . . . . . . . . . . . . . . . . . . . . . 1 1 . Damage (minor) 2 | . . . . . . . . . . . . . . . . . . . . . . . . . . . . 2 . Damage (major) 5 | . . . . . . . . . . . . . . . . . . . . . . . . . . . . 5 . Siege Activations . | . . . . . . . . . . . . . . . . . . . . . . . . . . . . . . Martial Activations . | . . . . . . . . . . . . . . . . . . . . . . . . . . . . . . Shielding Activations 3 | . . . . . . . . . . . . . . . . . . . . . . . . 3 . . . . . Total Turns 55 | . . . . . . . . . . . . . . . . . . . . . . . . 55 . . . . . Longest Duration 32 | . . . . . . . . . . . . . . . . . . . . . . . . 32 . . . . . Robots Disrupted . | . . . . . . . . . . . . . . . . . . . . . . . . . . . . . . Combat Hostiles . | . . . . . . . . . . . . . . . . . . . . . . . . . . . . . . Robots Corrupted 1 | . . . . . . . . . . . . . . . . . . . . . . 1 . . . . . . . Combat Hostiles 1 | . . . . . . . . . . . . . . . . . . . . . . 1 . . . . . . . Parts Fried 2 | . . . . . . . . . 1 . . . . . . . . 1 . . . . . . . . . . . Impact Corruptions 3 | . . . . . . . . . . . . . . . . . . . . . . 2 . . . . 1 . . Robots Melted 6 | . . . . . . . . . . 1 . 1 2 1 . . . . . . . . . 1 . . . . . Combat Hostiles 6 | . . . . . . . . . . 1 . 1 2 1 . . . . . . . . . 1 . . . . . Parts Melted 57 | 1 . . . . . . . . 5 1 11 9 10 8 . 2 . 2 . 5 . . . 2 . . . . 1 Heat Transferred 18655 | 74 185 . 74 . 74 1036 370 111 1629 658 2098 3621 1591 2246 . 407 . 259 111 588 . 351 . 721 259 555 370 296 971 Parts Sabotaged 6 | . . . . . . . . . . . . . . . . . . . . . . . . . . . . 6 . Parts Stolen . | . . . . . . . . . . . . . . . . . . . . . . . . . . . . . . Parts Stripped . | . . . . . . . . . . . . . . . . . . . . . . . . . . . . . . Power Chain Reactions . | . . . . . . . . . . . . . . . . . . . . . . . . . . . . . . Alert | -11 -10 -10 -9 -9 -8 -8 -8 -8 -7 -7 -6 -6 -6 -6 -5 -5 -4 -4 -4 -4 -3 -3 -3 -3 -2 -2 -2 -2 -1 ------- Run | Yrd Mat Min Mat Min Mat Gar Sto Gar Fac Gar Fac Gar Fac Gar Fac Gar Fac Gar Fac Gar Res Gar Res Gar Res Qua Sec Gar Acc Maximum Alert Level 5 | . . . 2 . . 3 2 3 2 2 2 3 2 5 3 4 3 5 3 3 2 2 1 2 1 1 1 2 3 Low Security (%) 24 | 100 100 100 51 100 100 12 . . . . 19 . . 8 . . . 6 . . . . 24 19 55 79 68 8 12 Level 1 33 | . . . 45 . . 23 . 22 81 52 66 27 86 20 . . 39 14 . . . 94 75 2 44 20 31 23 73 Level 2 26 | . . . 2 . . 34 100 59 18 47 13 52 13 9 . 16 49 5 . 62 100 5 . 78 . . . 67 12 Level 3 9 | . . . . . . 29 . 18 . . . 19 . 20 100 28 11 23 100 37 . . . . . . . . 1 Level 4 4 | . . . . . . . . . . . . . . 38 . 55 . 34 . . . . . . . . . . . Level 5 . | . . . . . . . . . . . . . . 2 . . . 14 . . . . . . . . . . . High Security . | . . . . . . . . . . . . . . . . . . . . . . . . . . . . . . Max Security . | . . . . . . . . . . . . . . . . . . . . . . . . . . . . . . Peak Influence 1665 | 5 151 130 406 142 52 985 518 1029 539 538 466 850 445 1665 873 1362 714 1656 1013 735 413 405 323 688 387 226 259 605 1090 Initial 873 | . . . 11 142 42 . 479 310 539 270 282 259 445 174 873 604 714 160 869 517 413 309 204 111 387 . 75 175 362 Average 431 | 1 37 56 208 97 28 538 479 580 327 415 276 554 344 886 869 1079 501 991 945 626 413 345 233 502 156 127 153 450 315 Influence Increases 16003 | 10 323 150 774 167 34 1005 209 929 331 408 644 801 234 1681 . 818 60 1566 250 458 . 365 325 817 51 639 299 730 1925 Destroy 0b10 Robot/C 7113 | . 200 100 500 140 20 480 160 420 240 220 360 560 140 780 . 340 20 585 75 165 . 144 120 372 . 132 120 240 480 Destroy 0b10 Robot/NC 231 | 10 10 . 50 5 . . 5 5 30 . 35 . . 5 . . . . 4 12 . 3 6 3 . 18 9 3 18 Destroy Leader 958 | . 32 20 142 . 10 20 40 30 60 10 96 30 30 50 . 40 10 28 16 24 . 18 32 30 . 12 20 42 116 Allied During Kill 2042 | . . . . . . . . 8 . 11 136 3 . 456 . 258 30 607 95 86 . 74 59 81 . 98 10 15 15 Successful Hack 333 | . 34 . 20 . 4 44 2 28 . 12 12 14 14 7 . . . 15 3 23 . 6 . 8 32 13 9 20 13 Select Force Hacks 23 | . . . . . . . . . . . . . . . . . . . 23 . . . . . . . . . . Disable Machine 327 | . . . 30 15 . . . . . . . . 15 . . . . . 12 12 . . 9 18 9 99 9 27 72 Anti-Garrison Action 1982 | . . . . . . 250 . 300 . 100 . 100 . 350 . 150 . 176 . 76 . 60 . 180 . . . 150 90 Destroy Structure 2295 | . 2 . 32 7 . 121 2 93 1 40 5 19 5 33 . 15 . 155 22 12 . 42 90 107 10 240 122 188 932 Partial Spotted 18 | . . . . . . . . . . . . . . . . . . . . . . 18 . . . . . . . Lose Combat Pursuer 681 | . 45 30 . . . 90 . 45 . 15 . 75 30 . . 15 . . . 48 . . 9 18 . 27 . 45 189 Influence Decreases 14918 | 10 323 120 437 423 145 20 716 378 974 256 812 321 835 265 802 319 1193 139 1167 462 322 414 540 278 739 505 199 359 1445 Entered New Map 6503 | . . . 19 225 69 . 506 168 490 116 256 111 405 75 792 259 648 69 787 222 322 104 160 38 301 . 59 59 243 Time Decay 4141 | 10 323 120 355 198 76 . 180 . 334 . 446 . 350 . 10 . 170 . 120 . . . 190 . 132 415 100 . 612 Lost Part 1220 | . . . 10 . . 20 30 110 . 40 . 190 20 10 . . . . 10 20 . 30 10 70 . 10 . 180 460 Lost Ally 2026 | . . . . . . . . 100 . 100 110 20 60 180 . 60 . 70 250 220 . 280 30 170 6 80 40 120 130 Purge Threat 1028 | . . . 53 . . . . . 150 . . . . . . . 375 . . . . . 150 . 300 . . . . Squads Dispatched 65 | . 1 . 2 . . . 3 . 5 . 6 . 5 . . . 2 . 3 . . . 2 . 3 7 5 . 21 Investigation 8 | . . . 1 . . . . . 1 . 1 . 2 . . . . . 1 . . . . . . . . . 2 Extermination 17 | . . . . . . . . . 1 . 3 . 1 . . . 1 . . . . . 2 . 1 3 . . 5 Reinforcement 25 | . 1 . 1 . . . . . 2 . 1 . 1 . . . 1 . 1 . . . . . 2 4 3 . 8 Assault 3 | . . . . . . . . . . . . . . . . . . . . . . . . . . . . . 3 Garrison 12 | . . . . . . . 3 . 1 . 1 . 1 . . . . . 1 . . . . . . . 2 . 3 Intercept . | . . . . . . . . . . . . . . . . . . . . . . . . . . . . . . Searches Triggered . | . . . . . . . . . . . . . . . . . . . . . . . . . . . . . . Construction Impeded 5 | . . . . . . . . . . . 1 . . . . . . . 1 . . . . . 1 . . . 2 Haulers Reinforced 2 | . . . . . . . . . . . . . . . . . . . . . . . . . . 1 1 . . Active Scanning Responses . | . . . . . . . . . . . . . . . . . . . . . . . . . . . . . . Cargo Convoy Interrupts . | . . . . . . . . . . . . . . . . . . . . . . . . . . . . . . Alert ID Control Effect 87 | . . . . . . . . . . . . . . . . . 1 4 6 7 . 9 . 8 6 22 6 3 15 Stealth | -11 -10 -10 -9 -9 -8 -8 -8 -8 -7 -7 -6 -6 -6 -6 -5 -5 -4 -4 -4 -4 -3 -3 -3 -3 -2 -2 -2 -2 -1 --------- Run | Yrd Mat Min Mat Min Mat Gar Sto Gar Fac Gar Fac Gar Fac Gar Fac Gar Fac Gar Fac Gar Res Gar Res Gar Res Qua Sec Gar Acc Distress Signals 20 | . 1 . 4 . . 1 2 . . . 4 . . 3 . . . . 1 1 . 1 1 . . . 1 . . Communications Jammed 354 | . . . . . . . . . . . 28 . . . . . . . 80 4 . 24 6 . 1 158 2 . 51 Distress Signals 352 | . . . . . . . . . . . 28 . . . . . . . 78 4 . 24 6 . 1 158 2 . 51 Times Spotted 733 | . 20 7 41 8 3 26 12 36 20 27 34 39 12 49 . 22 5 39 16 32 . 26 12 53 12 35 17 41 89 Peak Tracking Total 11 | . 4 3 9 2 2 7 6 9 3 7 8 11 4 10 . 5 3 6 5 6 . 8 4 11 2 8 8 9 10 Tactical Retreats 38 | . 2 2 . . . 3 . 2 . 1 . 4 2 . . 1 . . . 2 . . 1 2 . 2 . 4 10 Traps | -11 -10 -10 -9 -9 -8 -8 -8 -8 -7 -7 -6 -6 -6 -6 -5 -5 -4 -4 -4 -4 -3 -3 -3 -3 -2 -2 -2 -2 -1 ------- Run | Yrd Mat Min Mat Min Mat Gar Sto Gar Fac Gar Fac Gar Fac Gar Fac Gar Fac Gar Fac Gar Res Gar Res Gar Res Qua Sec Gar Acc Traps Triggered 53 | . 1 . . . . 7 . 7 3 3 1 4 1 7 . 1 . 2 . 2 . 2 . 5 1 1 . 5 . Indirectly . | . . . . . . . . . . . . . . . . . . . . . . . . . . . . . . Trap Hack Attempts . | . . . . . . . . . . . . . . . . . . . . . . . . . . . . . . Triggered . | . . . . . . . . . . . . . . . . . . . . . . . . . . . . . . Disarmed . | . . . . . . . . . . . . . . . . . . . . . . . . . . . . . . Reprogrammed . | . . . . . . . . . . . . . . . . . . . . . . . . . . . . . . Reused . | . . . . . . . . . . . . . . . . . . . . . . . . . . . . . . Traps Extracted . | . . . . . . . . . . . . . . . . . . . . . . . . . . . . . . Installed . | . . . . . . . . . . . . . . . . . . . . . . . . . . . . . . Triggered . | . . . . . . . . . . . . . . . . . . . . . . . . . . . . . . Machines | -11 -10 -10 -9 -9 -8 -8 -8 -8 -7 -7 -6 -6 -6 -6 -5 -5 -4 -4 -4 -4 -3 -3 -3 -3 -2 -2 -2 -2 -1 ---------- Run | Yrd Mat Min Mat Min Mat Gar Sto Gar Fac Gar Fac Gar Fac Gar Fac Gar Fac Gar Fac Gar Res Gar Res Gar Res Qua Sec Gar Acc Machines Disabled 73 | . . . 3 1 . 4 . 4 . 2 . 2 1 5 . 2 . 4 1 3 . 3 1 7 1 11 1 8 9 Max in Single Turn 6 | . . . 1 1 . 1 . 1 . 1 . 1 1 1 . 1 . 1 . 1 . 1 . 2 . 2 1 2 6 Garrison Access 2 | . . . . . . . . . . . . . . . . . . . . . . . . . . 1 . . 1 Garrison Relay 31 | . . . . . . 3 . 3 . 2 . 2 . 4 . 2 . 4 . 2 . 2 . 4 . . . 3 . Phase Generator 1 | . . . . . . . . . . . . . . . . . . . . . . . . . . . . 1 . Machines Repaired . | . . . . . . . . . . . . . . . . . . . . . . . . . . . . . . Machines Dismantled . | . . . . . . . . . . . . . . . . . . . . . . . . . . . . . . Machines Sabotaged . | . . . . . . . . . . . . . . . . . . . . . . . . . . . . . . Overloaded Fab Kills . | . . . . . . . . . . . . . . . . . . . . . . . . . . . . . . Hacking | -11 -10 -10 -9 -9 -8 -8 -8 -8 -7 -7 -6 -6 -6 -6 -5 -5 -4 -4 -4 -4 -3 -3 -3 -3 -2 -2 -2 -2 -1 --------- Run | Yrd Mat Min Mat Min Mat Gar Sto Gar Fac Gar Fac Gar Fac Gar Fac Gar Fac Gar Fac Gar Res Gar Res Gar Res Qua Sec Gar Acc Machines Accessed 90 | . 8 . 11 . 2 3 4 3 3 3 7 1 3 3 1 1 2 3 3 1 1 1 1 2 3 7 3 4 6 Terminals 67 | . 7 . 9 . 1 3 3 3 1 3 5 1 2 3 . 1 1 3 . 1 . 1 . 2 3 5 2 4 3 Fabricators 3 | . . . . . . . . . 1 . . . . . . . . . 1 . . . . . . . . . 1 Repair Stations 6 | . 1 . 2 . . . . . . . 1 . . . . . . . . . . . . . . 1 . . 1 Recycling Units 1 | . . . . . . . . . . . . . . . . . . . . . . . . . . . . . 1 Scanalyzers 1 | . . . . . . . . . . . . . . . . . . . 1 . . . . . . . . . . Garrison Access 12 | . . . . . 1 . 1 . 1 . 1 . 1 . 1 . 1 . 1 . 1 . 1 . . 1 1 . . Total Hacks 217 | . 26 . 34 . 4 7 5 7 11 6 12 2 8 8 2 3 4 5 6 3 2 2 2 6 13 12 8 8 11 Successful 96 | . 13 . 20 . 1 4 3 2 5 1 2 1 3 2 1 . 1 2 4 2 1 1 1 2 9 7 3 3 2 Failed 121 | . 13 . 14 . 3 3 2 5 6 5 10 1 5 6 1 3 3 3 2 1 1 1 1 4 4 5 5 5 9 Catastrophic 22 | . 1 . 2 . . 1 . . 3 2 2 . 2 2 1 . 1 . . . . 1 . 1 . . 2 1 . Database Lockouts . | . . . . . . . . . . . . . . . . . . . . . . . . . . . . . . Manual 118 | . 24 . 24 . 2 4 . 1 4 . 11 . 5 1 1 . 3 . 4 1 1 1 1 3 8 3 7 1 8 Terminals 170 | . 24 . 27 . 2 7 4 7 6 6 8 2 6 8 . 3 2 5 . 3 . 2 . 6 13 9 7 8 5 Fabricators 8 | . . . . . . . . . 3 . . . . . . . . . 3 . . . . . . . . . 2 Repair Stations 15 | . 2 . 7 . . . . . . . 3 . . . . . . . . . . . . . . 1 . . 2 Recycling Units 2 | . . . . . . . . . . . . . . . . . . . . . . . . . . . . . 2 Scanalyzers 1 | . . . . . . . . . . . . . . . . . . . 1 . . . . . . . . . . Garrison Access 21 | . . . . . 2 . 1 . 2 . 1 . 2 . 2 . 2 . 2 . 2 . 2 . . 2 1 . . Terminal Hacks 40 | . 4 . 5 . . 3 2 2 1 1 . 1 . 2 . . . 2 . 2 . 1 . 2 5 3 1 3 . Robot Schematic 1 | . . . 1 . . . . . . . . . . . . . . . . . . . . . . . . . . Robot Analysis 3 | . 2 . 1 . . . . . . . . . . . . . . . . . . . . . . . . . . Prototype ID Bank 1 | . . . 1 . . . . . . . . . . . . . . . . . . . . . . . . . . Open Door 7 | . . . . . . . 2 . . . . . . 1 . . . 1 . . . . . 1 . 1 . 1 . Branch Access Points 1 | . . . . . . . . . . . . . . . . . . . . . . . . . 1 . . . . Emergency Access Points 7 | . . . . . . 1 . 1 . . . . . 1 . . . . . 1 . 1 . 1 . . . 1 . Terminal Index 1 | . 1 . . . . . . . . . . . . . . . . . . . . . . . . . . . . Unreport Threat 4 | . . . 1 . . . . . 1 . . . . . . . . . . . . . . . 2 . . . . Locate Traps 5 | . . . . . . . . . . . . . . . . . . . . . . . . . 2 2 1 . . Zone Layout 2 | . 1 . 1 . . . . . . . . . . . . . . . . . . . . . . . . . . Garrison Registry 4 | . . . . . . 1 . . . 1 . . . . . . . 1 . 1 . . . . . . . . . Patrol Navigation 1 | . . . . . . . . 1 . . . . . . . . . . . . . . . . . . . . . Security Stations 3 | . . . . . . 1 . . . . . 1 . . . . . . . . . . . . . . . 1 . Fabricator Hacks 2 | . . . . . . . . . 1 . . . . . . . . . 1 . . . . . . . . . . Load Schematic 1 | . . . . . . . . . 1 . . . . . . . . . . . . . . . . . . . . Build 1 | . . . . . . . . . . . . . . . . . . . 1 . . . . . . . . . . Repair Station Hacks 6 | . . . 6 . . . . . . . . . . . . . . . . . . . . . . . . . . Scan Component 3 | . . . 3 . . . . . . . . . . . . . . . . . . . . . . . . . . Repair 3 | . . . 3 . . . . . . . . . . . . . . . . . . . . . . . . . . Recycling Unit Hacks . | . . . . . . . . . . . . . . . . . . . . . . . . . . . . . . Scanalyzer . | . . . . . . . . . . . . . . . . . . . . . . . . . . . . . . Garrison Access Hacks 13 | . . . . . 1 . 1 . 1 . 1 . 1 . 1 . 1 . 1 . 1 . 1 . . 2 1 . . Unlock Access 11 | . . . . . 1 . 1 . 1 . 1 . 1 . 1 . 1 . 1 . 1 . 1 . . . 1 . . Seal Access 1 | . . . . . . . . . . . . . . . . . . . . . . . . . . 1 . . . Coupler Status 1 | . . . . . . . . . . . . . . . . . . . . . . . . . . 1 . . . Unauthorized Hacks 35 | . 9 . 9 . . 1 . . 2 . 1 . 2 . . . . . 2 . . . . . 4 2 1 . 2 Terminals 31 | . 9 . 9 . . 1 . . 2 . 1 . 1 . . . . . . . . . . . 4 2 1 . 1 Track 1 | . . . 1 . . . . . . . . . . . . . . . . . . . . . . . . . . Botnet 16 | . 4 . 2 . . 1 . . 1 . 1 . 1 . . . . . . . . . . . 3 2 . . 1 Disrupt 2 | . . . 1 . . . . . . . . . . . . . . . . . . . . . . . 1 . . Skim 12 | . 5 . 5 . . . . . 1 . . . . . . . . . . . . . . . 1 . . . . Fabricators 1 | . . . . . . . . . . . . . . . . . . . 1 . . . . . . . . . . Prioritize 1 | . . . . . . . . . . . . . . . . . . . 1 . . . . . . . . . . Repair Stations 1 | . . . . . . . . . . . . . . . . . . . . . . . . . . . . . 1 Patch 1 | . . . . . . . . . . . . . . . . . . . . . . . . . . . . . 1 Recycling Units . | . . . . . . . . . . . . . . . . . . . . . . . . . . . . . . Scanalyzers 1 | . . . . . . . . . . . . . . . . . . . 1 . . . . . . . . . . Extract 1 | . . . . . . . . . . . . . . . . . . . 1 . . . . . . . . . . Garrison Access 1 | . . . . . . . . . . . . . 1 . . . . . . . . . . . . . . . . Reprogram 1 | . . . . . . . . . . . . . 1 . . . . . . . . . . . . . . . . Data Cores Recovered 1 | . . . . . . . . . 1 . . . . . . . . . . . . . . . . . . . . Used 1 | . . . . . . . . . 1 . . . . . . . . . . . . . . . . . . . . Hacking Detections 78 | . 8 . 11 . 2 1 2 3 3 3 6 1 3 2 1 1 2 1 2 1 1 1 1 1 3 6 3 3 6 Full Trace Events 10 | . . . 1 . 1 . . 1 1 . . . 1 1 . 1 . . . . . . . 1 . . . 1 1 Feedback Events 1 | . . . . . . . . . . . . . . . . . . . . . . . . . . . . . 1 Corruption 1 | . . . . . . . . . . . . . . . . . . . . . . . . . . . . . 1 Feedback Blocked . | . . . . . . . . . . . . . . . . . . . . . . . . . . . . . . Robot Schematics Acquired 6 | . . . 1 . . . . . . . . . . . . . . . . . . . . . . 4 1 . . Robots Built 1 | . . . . . . . . . . . . . . . . . . . 1 . . . . . . . . . . Authchips . | . . . . . . . . . . . . . . . . . . . . . . . . . . . . . . Time 81 | . . . . . . . . . . . . . . . . . . . 81 . . . . . . . . . . Total Robot Build Rating 1 | . . . . . . . . . . . . . . . . . . . 1 . . . . . . . . . . Part Schematics Acquired 11 | . . . . . . . . . . . . . . . . . . . 3 . . . . . . 4 4 . . Parts Built . | . . . . . . . . . . . . . . . . . . . . . . . . . . . . . . Authchips . | . . . . . . . . . . . . . . . . . . . . . . . . . . . . . . Time . | . . . . . . . . . . . . . . . . . . . . . . . . . . . . . . Total Part Build Rating . | . . . . . . . . . . . . . . . . . . . . . . . . . . . . . . Parts Repaired 3 | . . . 3 . . . . . . . . . . . . . . . . . . . . . . . . . . Time 108 | . . . 108 . . . . . . . . . . . . . . . . . . . . . . . . . . Parts Recycled . | . . . . . . . . . . . . . . . . . . . . . . . . . . . . . . Recycled Matter . | . . . . . . . . . . . . . . . . . . . . . . . . . . . . . . Retrieved Matter . | . . . . . . . . . . . . . . . . . . . . . . . . . . . . . . Retrieved Components . | . . . . . . . . . . . . . . . . . . . . . . . . . . . . . . Parts Scanalyzed . | . . . . . . . . . . . . . . . . . . . . . . . . . . . . . . Part Schematics Acquired . | . . . . . . . . . . . . . . . . . . . . . . . . . . . . . . Parts Damaged . | . . . . . . . . . . . . . . . . . . . . . . . . . . . . . . Bothacking | -11 -10 -10 -9 -9 -8 -8 -8 -8 -7 -7 -6 -6 -6 -6 -5 -5 -4 -4 -4 -4 -3 -3 -3 -3 -2 -2 -2 -2 -1 ------------ Run | Yrd Mat Min Mat Min Mat Gar Sto Gar Fac Gar Fac Gar Fac Gar Fac Gar Fac Gar Fac Gar Res Gar Res Gar Res Qua Sec Gar Acc Used RIF Installer 11 | . . . . . . 1 . 1 . 1 . 1 . 1 . 1 . 1 . 1 . 1 . 1 . . . 1 . Coupler Efficiency 1 | . . . . . . . . . . . . . . 1 . . . . . . . . . . . . . . . Hotswap 1 | . . . . . . . . 1 . . . . . . . . . . . . . . . . . . . . . Threat Obfuscator 2 | . . . . . . . . . . . . . . . . . . 1 . . . 1 . . . . . . . Signal Jammer 1 | . . . . . . . . . . 1 . . . . . . . . . . . . . . . . . . . Zone Cloak 1 | . . . . . . . . . . . . . . . . . . . . . . . . . . . . 1 . Watcher Feeds 1 | . . . . . . . . . . . . . . . . . . . . . . . . 1 . . . . . Alert ID Control 1 | . . . . . . . . . . . . . . . . 1 . . . . . . . . . . . . . Structural Interface 1 | . . . . . . . . . . . . 1 . . . . . . . . . . . . . . . . . Autoassimilate 1 | . . . . . . . . . . . . . . . . . . . . 1 . . . . . . . . . Robots Hacked 171 | . . . . . . . . 8 . 13 10 2 5 17 . 9 5 12 6 12 . 9 6 14 9 9 . 13 12 Non-combat 42 | . . . . . . . . . . 2 7 . 5 2 . . 2 . 1 1 . 2 5 . 4 3 . . 8 Combat 129 | . . . . . . . . 8 . 11 3 2 . 15 . 9 3 12 5 11 . 7 1 14 5 6 . 13 4 Autoassimilated 12 | . . . . . . . . . . . . . . . . . . . . 1 . 1 . 4 1 . . 3 2 Robot Hacks Applied 177 | . . . . . . . . 8 . 13 13 3 5 18 . 9 9 12 6 12 . 8 8 11 10 10 . 11 11 parse_system 5 | . . . . . . . . . . 1 1 . 1 1 . 1 . . . . . . . . . . . . . no_distress 1 | . . . . . . . . . . . . . . . . . 1 . . . . . . . . . . . . generate_echo 2 | . . . . . . . . . . . 1 . . 1 . . . . . . . . . . . . . . . deconstruct_machine 1 | . . . . . . . . . . . 1 . . . . . . . . . . . . . . . . . . map_walls 19 | . . . . . . . . . . . 3 . 2 . . . 1 . 1 . . . 2 . 2 1 . . 7 map_earth 4 | . . . . . . . . . . . 1 . 1 . . . . . . . . . . . 1 . . . 1 find_fabricator 1 | . . . . . . . . . . . . . . . . . . . . . . . 1 . . . . . . drop_inventory 1 | . . . . . . . . . . . . . . . . . . . . . . . . . . 1 . . . purge_threat 4 | . . . . . . . . . . . . . . . . . 3 . . . . . 1 . . . . . . block_reporting 2 | . . . . . . . . . . . . . . . . . . . . . . . 1 . 1 . . . . disable_scanner 2 | . . . . . . . . . . . . . . . . . . . . . . . . . . 2 . . . locate_prototypes 1 | . . . . . . . . . . . . . . . . . . . . . . . . . . 1 . . . link_fov 1 | . . . . . . . . . . . 1 . . . . . . . . . . . . . . . . . . scatter_targeting 2 | . . . . . . . . . . . . 1 . . . . . . . . . . . 1 . . . . . mark_system 3 | . . . . . . . . . . . . . . . . 1 . . . . . . . . 2 . . . . spike_heat 5 | . . . . . . . . . . . . 1 . . . . . 1 1 . . . . 1 1 . . . . overload_power 1 | . . . . . . . . . . . 1 . . . . . . . . . . . . . . . . . . amplify_resonance 10 | . . . . . . . . 2 . 2 . . . 1 . . . . . 1 . . . 1 1 . . 2 . reboot_system 6 | . . . . . . . . . . 1 . . . 1 . . . 1 1 1 . . . . . . . . 1 go_dormant 1 | . . . . . . . . . . . . . . . . 1 . . . . . . . . . . . . . overwrite_iff 13 | . . . . . . . . 3 . 2 . 1 . . . . . . . . . 2 . . 1 . . 4 . formatsys_low 14 | . . . . . . . . . . 2 1 . 1 1 . . 1 . . . . 2 2 . . 3 . . 1 formatsys_high 78 | . . . . . . . . 3 . 5 3 . . 13 . 6 3 10 3 10 . 4 1 8 1 2 . 5 1 Relay Couplers Released 134 | . . . . . . 13 . 13 . 12 . 9 . 19 . 8 . 15 . 8 . 8 . 13 . . . 14 2 Machine Destruction 131 | . . . . . . 13 . 13 . 9 . 9 . 19 . 8 . 15 . 8 . 8 . 13 . . . 14 2 Programmers 3 | . . . . . . . . . . 3 . . . . . . . . . . . . . . . . . . . Attached 53 | . . . . . . . . 4 . 5 3 1 1 6 1 5 2 5 2 2 . 3 1 4 1 2 . 3 2 Fabnet Peak Effective % . | . . . . . . . . . . . . . . . . . . . . . . . . . . . . . . Robots Rewired 6 | . . . . . . . . . . . . . . 2 . . . . . . . 4 . . . . . . . Allies Hacked 13 | . . . . . . . . . . . . . . . . . . . . 1 . 2 . 4 . 3 . 2 1 Hacks Repelled . | . . . . . . . . . . . . . . . . . . . . . . . . . . . . . . Allies | -11 -10 -10 -9 -9 -8 -8 -8 -8 -7 -7 -6 -6 -6 -6 -5 -5 -4 -4 -4 -4 -3 -3 -3 -3 -2 -2 -2 -2 -1 -------- Run | Yrd Mat Min Mat Min Mat Gar Sto Gar Fac Gar Fac Gar Fac Gar Fac Gar Fac Gar Fac Gar Res Gar Res Gar Res Qua Sec Gar Acc Total Allies 135 | . . . . . . . . 6 . 9 4 1 4 18 . 6 4 14 4 12 . 13 3 13 3 5 . 12 4 Largest Group 23 | . . . . . . . . 3 . 4 6 1 4 11 6 10 13 23 21 9 7 8 3 6 8 6 2 3 3 Highest-Rated Group 1175 | . . . . . . . . 45 . 110 171 85 110 361 183 351 523 1175 1071 519 362 426 274 367 532 535 386 192 192 Highest-Rated Ally 344 | . . . . . . . . 16 . 32 32 85 29 51 41 49 49 116 116 116 80 119 119 116 148 344 324 69 183 Total Orders 27 | . . . . . . . . . . 2 15 . 1 2 . 1 . 3 . . . 2 1 . . . . . . STAY 8 | . . . . . . . . . . . 7 . . . . . . 1 . . . . . . . . . . . FOLLOW 2 | . . . . . . . . . . . 1 . . . . . . 1 . . . . . . . . . . . AID 17 | . . . . . . . . . . 2 7 . 1 2 . 1 . 1 . . . 2 1 . . . . . . Ally Attacks 1033 | . . . . . . . . 17 . 30 48 2 10 171 . 60 8 150 79 76 . 46 24 57 28 128 24 32 43 Total Damage 32431 | . . . . . . . . 244 . 580 2087 174 151 3701 . 1508 186 4527 2176 2819 . 1484 975 2058 1055 4526 1256 1022 1902 Kills 199 | . . . . . . . . 1 . 5 19 1 . 26 . 10 2 23 13 14 . 11 8 8 6 25 6 6 15 Allies Corrupted 9 | . . . . . . . . . . . . . . . . . . . 1 1 . 3 1 2 . 1 . . . Allies Melted 4 | . . . . . . . . . . . . . 1 . . . . . . . . . . 1 1 . . 1 . Intel | -11 -10 -10 -9 -9 -8 -8 -8 -8 -7 -7 -6 -6 -6 -6 -5 -5 -4 -4 -4 -4 -3 -3 -3 -3 -2 -2 -2 -2 -1 ------- Run | Yrd Mat Min Mat Min Mat Gar Sto Gar Fac Gar Fac Gar Fac Gar Fac Gar Fac Gar Fac Gar Res Gar Res Gar Res Qua Sec Gar Acc Active Infowar (turns) 4291 | 11 1272 325 961 410 161 6 . . . . . . . 1 . . . . . . . . . . . . . . 1144 Sensors 272 | . . . . . . . . . . . . . . . . . . . . . . . . . . . . . 272 Terrain 1 | . . . . . . . . . . . . . . 1 . . . . . . . . . . . . . . . Structural 1723 | . . 185 961 410 161 6 . . . . . . . . . . . . . . . . . . . . . . . Seismic 230 | 11 219 . . . . . . . . . . . . . . . . . . . . . . . . . . . . Machine Analysis 1193 | . 1053 140 . . . . . . . . . . . . . . . . . . . . . . . . . . . Cloaking 872 | . . . . . . . . . . . . . . . . . . . . . . . . . . . . . 872 Robot Analysis Total 3 | . 2 . 1 . . . . . . . . . . . . . . . . . . . . . . . . . . Derelict Logs Recovered 1 | . . 1 . . . . . . . . . . . . . . . . . . . . . . . . . . . Drone Launches . | . . . . . . . . . . . . . . . . . . . . . . . . . . . . . . Drone Recoveries . | . . . . . . . . . . . . . . . . . . . . . . . . . . . . . . Exploration | -11 -10 -10 -9 -9 -8 -8 -8 -8 -7 -7 -6 -6 -6 -6 -5 -5 -4 -4 -4 -4 -3 -3 -3 -3 -2 -2 -2 -2 -1 ------------- Run | Yrd Mat Min Mat Min Mat Gar Sto Gar Fac Gar Fac Gar Fac Gar Fac Gar Fac Gar Fac Gar Res Gar Res Gar Res Qua Sec Gar Acc Turns Passed 21679 | 62 1300 326 961 410 161 1661 362 1358 755 696 1117 919 791 1234 29 429 356 915 247 613 14 536 394 1298 402 1114 203 1009 2007 Spaces Moved 11953 | 33 587 251 534 187 109 646 145 506 487 400 686 503 478 758 17 241 250 537 133 370 8 296 243 738 275 681 97 530 1227 Core 2 | 1 . . . . . . . 1 . . . . . . . . . . . . . . . . . . . . . Treads . | . . . . . . . . . . . . . . . . . . . . . . . . . . . . . . Legs 11951 | 32 587 251 534 187 109 646 145 505 487 400 686 503 478 758 17 241 250 537 133 370 8 296 243 738 275 681 97 530 1227 Wheels . | . . . . . . . . . . . . . . . . . . . . . . . . . . . . . . Hover . | . . . . . . . . . . . . . . . . . . . . . . . . . . . . . . Flight . | . . . . . . . . . . . . . . . . . . . . . . . . . . . . . . Fastest Speed 50 | 50 120 120 120 120 120 190 190 120 120 121 121 121 120 118 118 118 118 118 122 122 122 122 122 120 120 120 120 118 116 Average Speed 128 | 117 120 120 120 120 133 190 190 187 120 121 126 123 120 118 118 118 118 118 122 122 122 122 122 124 121 120 121 120 119 Slowest Speed 260 | 120 120 120 120 120 190 190 260 200 121 122 128 128 121 120 118 118 118 122 122 122 122 122 122 140 180 120 186 190 190 Overloaded Moves . | . . . . . . . . . . . . . . . . . . . . . . . . . . . . . . Propulsion Burnouts . | . . . . . . . . . . . . . . . . . . . . . . . . . . . . . . Robots Hopped 4 | . . . . . . . . . . . . . . 4 . . . . . . . . . . . . . . . Potential Cave-ins 2 | . . . . . . . . . . . . . . . . . . . . . . . . . . . . . 2 Cave-ins Triggered . | . . . . . . . . . . . . . . . . . . . . . . . . . . . . . . Exploration Rate (%) 44 | 3 95 74 57 48 14 88 28 63 15 53 26 67 15 78 1 42 9 91 6 59 . 51 8 87 13 71 12 72 46 Regions Visited 29 Branch Regions 5 Pre-discovered Areas 1 | . . . 1 . . . . . . . . . . . . . . . . . . . . . . . . . . Known Exits Taken 16 | . 1 1 1 1 1 . 1 . 1 . 1 . 1 . 1 . 1 . 1 . 1 . 1 . 1 . 1 . . Unknown Exits Taken 2 | 1 . . . . . . . . . . . . . . . . . . . . . . . . . 1 . . . Scrap Searched 2 | . . 1 . 1 . . . . . . . . . . . . . . . . . . . . . . . . . Spaces Dug 582 | . 2 . . 4 . . 1 1 . 4 3 1 3 1 . . . 10 2 . . . 1 . . 25 . 10 514 Terrain Destroyed 1325 | . 2 . 29 7 . 1 1 24 . 5 3 4 3 17 . . . 63 3 1 . 22 6 122 5 46 57 142 762 Melee 50 | . . . . . . . 1 1 . 4 3 1 3 1 . . . 10 2 . . . 1 . . 2 . 4 17 Projectile 228 | . 2 . . 7 . . . . . . . . . . . . . 5 1 1 . 5 5 11 5 9 11 66 100 AOE 1047 | . . . 29 . . 1 . 23 . 1 . 3 . 16 . . . 48 . . . 17 . 111 . 35 46 72 645 Terrain Rammed . | . . . . . . . . . . . . . . . . . . . . . . . . . . . . . . Walls Destroyed . | . . . . . . . . . . . . . . . . . . . . . . . . . . . . . . Machines Disabled . | . . . . . . . . . . . . . . . . . . . . . . . . . . . . . . Actions | -11 -10 -10 -9 -9 -8 -8 -8 -8 -7 -7 -6 -6 -6 -6 -5 -5 -4 -4 -4 -4 -3 -3 -3 -3 -2 -2 -2 -2 -1 --------- Run | Yrd Mat Min Mat Min Mat Gar Sto Gar Fac Gar Fac Gar Fac Gar Fac Gar Fac Gar Fac Gar Res Gar Res Gar Res Qua Sec Gar Acc Total 16223 | 44 1115 264 754 282 122 904 182 747 603 540 866 663 650 998 26 349 305 734 202 471 12 418 299 1013 326 880 136 800 1518 Wait 1743 | . 480 3 120 40 . 82 2 36 35 29 66 10 114 96 4 61 31 61 48 19 4 40 13 102 15 83 4 109 36 Move 11924 | 32 586 250 533 186 108 645 145 505 487 399 686 502 477 750 17 240 250 535 133 369 8 295 243 737 274 680 97 529 1226 Hop 3 | . . . . . . . . . . . . . . 3 . . . . . . . . . . . . . . . Pick Up 188 | 1 5 1 8 . 4 11 . 13 7 10 10 16 5 16 1 2 2 11 1 7 . 7 2 23 . 6 . 15 4 Fast Attach 136 | 7 3 2 4 1 . . 1 12 9 3 1 5 6 7 . 1 1 2 . 2 . 2 . 10 2 5 . 20 30 Attach 139 | . . . 2 1 2 2 3 8 3 4 4 19 2 4 3 4 4 3 . 5 . 4 2 9 2 4 . 18 27 Detach 32 | . 1 . . 1 . . . 3 2 . . 1 . 1 . 1 . . . . . . . . . 1 . 7 14 Swap 329 | . 8 . 13 8 2 12 7 33 7 24 25 22 9 24 . 8 1 23 4 10 . 8 7 19 8 16 7 5 19 Drop 230 | . 2 2 14 4 3 7 1 9 19 6 15 14 10 21 1 1 3 17 . 6 . 5 1 25 4 14 2 12 12 Fire 1128 | 4 30 6 54 41 3 115 21 76 29 34 52 70 24 74 . 27 12 44 14 35 . 40 28 75 21 37 24 51 87 Melee 210 | . . . . . . . 2 24 5 19 3 3 3 1 . . . 16 2 9 . . 1 2 . 30 . 28 62 Ram . | . . . . . . . . . . . . . . . . . . . . . . . . . . . . . . Kick 13 | . . . 6 . . . . 1 . . 1 . . . . . . . . 1 . . . . . 1 2 1 . Crush . | . . . . . . . . . . . . . . . . . . . . . . . . . . . . . . Escape Stasis 70 | . . . . . . 30 . 27 . 10 . 1 . . . . . 1 . 1 . . . . . . . . . Rewire 78 | . . . . . . . . . . 2 3 . . 1 . 4 1 21 . 7 . 17 2 11 . 3 . 5 1 Trap . | . . . . . . . . . . . . . . . . . . . . . . . . . . . . . . Miscellaneous . | . . . . . . . . . . . . . . . . . . . . . . . . . . . . . . Route ------- -11/Scrapyard -10/Materials (discovered 6 exits: *Mat x3 / *Min x2 / Sub) -10/Mines -9/Materials (discovered 5 exits: *Mat x3 / *Min x2) -9/Mines (discovered 2 exits: *Mat x2) -8/Materials (discovered 2 exits: *Sto / Gar) -8/Garrison (discovered 3 exits: *Sto x3) -8/Storage (discovered 2 exits: Rec / Gar) -8/Garrison (discovered 2 exits: *Fac x2) -7/Factory (discovered 2 exits: [*Low] / Gar) -7/Garrison (discovered 3 exits: *Fac x3) -6/Factory (discovered 2 exits: [*Low] / Gar) -6/Garrison (discovered 2 exits: *Fac x2) -6/Factory (discovered 2 exits: *Fac / Gar) -6/Garrison (discovered 2 exits: *Fac x2) -5/Factory -5/Garrison -4/Factory (discovered 2 exits: *Res / Gar) -4/Garrison (discovered 3 exits: *Fac x3) -4/Factory -4/Garrison (discovered 3 exits: *Res x3) -3/Research -3/Garrison -3/Research -3/Garrison (discovered 2 exits: *Res x2) -2/Research (discovered 2 exits: *Qua x2) -2/Quarantine (discovered 2 exits: *Sec / [*Frg]) -2/Section 7 -2/Garrison (discovered 2 exits: *Acc x2) -1/Access To Epsilon Eridani History --------- Turn | Location | Event 7 | -11/Scrapyard | Discovered new exit (range 16) 63 | -11/Scrapyard | Entered Materials 64 | -10/Materials | Met a group of wandering Federalists 137 | -10/Materials | Discovered new exit (range 12) 174 | -10/Materials | Lost 3 allies 182 | -10/Materials | Discovered new exit (range 15) 302 | -10/Materials | Build established: Mutant 558 | -10/Materials | Discovered new exit (range 15) 672 | -10/Materials | Discovered new exit (range 15) 722 | -10/Materials | Discovered new exit (range 6) 857 | -10/Materials | Learned location of 2 exits from Subcaves 925 | -10/Materials | Identified exit to Subcaves 983 | -10/Materials | Learned location of 1 exit from Recycling 1033 | -10/Materials | Loaded intel: 9 trap records 1074 | -10/Materials | Learned location of 3 exits from Materials 1106 | -10/Materials | Identified exit to Mines 1106 | -10/Materials | Identified exit to Materials 1149 | -10/Materials | Learned location of 1 exit from Recycling 1201 | -10/Materials | Learned Storage trap positions 1264 | -10/Materials | Learned 2 Storage zone layouts 1339 | -10/Materials | Learned Storage trap positions 1363 | -10/Materials | Entered Mines 1372 | -10/Mines | YI-UF0 nonchalantly dropped a Grenade Launcher on the ground 1411 | -10/Mines | Learned Materials interactive machine intel 1570 | -10/Mines | Discovered exit to Materials (range 16) 1611 | -10/Mines | A weapon hastily lodged in a ceiling crevice suddenly fell to the ground 1689 | -10/Mines | Entered Materials 1689 | -9/Materials | Evolved 2 slots: Propulsion x1, Utility x1 1690 | -9/Materials | Identified exit to Mines 1690 | -9/Materials | Identified exit to Materials 1691 | -9/Materials | Loaded intel: 18 interactive machine locations 2016 | -9/Materials | Destroyed 8 combat bots 2044 | -9/Materials | Repaired Mak. Shrapnel Gun 2077 | -9/Materials | Repaired Med. Armor Plating 2133 | -9/Materials | Discovered exit to Mines (range 12) 2187 | -9/Materials | Learned Storage emergency access door positions 2247 | -9/Materials | Learned Storage non-interactive machine intel 2263 | -9/Materials | Learned Storage emergency access door positions 2274 | -9/Materials | Learned Storage trap positions 2282 | -9/Materials | Learned location of Mines (-9) 2324 | -9/Materials | Learned 2 Storage zone layouts 2632 | -9/Materials | Repaired Imp. Aluminum Leg 2650 | -9/Materials | Entered Mines 2691 | -9/Mines | Excavation squad dispatched 2691 | -9/Mines | A large section of the Mines collapsed 2941 | -9/Mines | Excavation squad dispatched 3060 | -9/Mines | Entered Materials 3060 | -8/Materials | Evolved 2 slots: Propulsion x1, Weapon x1 3099 | -8/Materials | Discovered new exit (range 16) 3167 | -8/Materials | Identified exit to Garrison 3221 | -8/Materials | Entered Garrison 3281 | -8/Garrison | Triggered checkpoint 3324 | -8/Garrison | Garrison Relay disabled 3489 | -8/Garrison | Triggered checkpoint 3594 | -8/Garrison | Build established: Scavenger-Tank 3663 | -8/Garrison | Discovered new exit (range 14) 3923 | -8/Garrison | Triggered checkpoint 4103 | -8/Garrison | Garrison Relay disabled 4234 | -8/Garrison | Discovered new exit (range 6) 4389 | -8/Garrison | Triggered checkpoint 4527 | -8/Garrison | Learned Storage security intel 4560 | -8/Garrison | Discovered new exit (range 11) 4613 | -8/Garrison | Triggered checkpoint 4724 | -8/Garrison | Discovered new exit (range 75) 4724 | -8/Garrison | Discovered new exit (range 26) 4724 | -8/Garrison | Discovered new exit (range 70) 4767 | -8/Garrison | Installed Relay Interface Framework 4794 | -8/Garrison | Garrison Relay disabled 4882 | -8/Garrison | Entered Storage 4883 | -8/Storage | Identified exit to Recycling 4885 | -8/Storage | Loaded intel: 26 trap records 4887 | -8/Storage | Loaded intel: 24 non-interactive machine locations 4955 | -8/Storage | Garrison activated, responded to threat 5201 | -8/Storage | Lost 3 parts (2n1w) 5244 | -8/Storage | Identified exit to Garrison 5244 | -8/Storage | Entered Garrison 5330 | -8/Garrison | Triggered checkpoint 5387 | -8/Garrison | Garrison Relay disabled 5530 | -8/Garrison | Triggered checkpoint 5538 | -8/Garrison | Core integrity fell below 50% 5542 | -8/Garrison | Triggered checkpoint 5598 | -8/Garrison | Lost 5 allies 5615 | -8/Garrison | Lost 9 parts (1p4n4w) 5768 | -8/Garrison | Triggered checkpoint 5848 | -8/Garrison | Triggered checkpoint 5964 | -8/Garrison | Garrison Relay disabled 6010 | -8/Garrison | Discovered new exit (range 10) 6050 | -8/Garrison | Expanded RIF knowledge: Hotswap 6501 | -8/Garrison | Garrison Relay disabled 6562 | -8/Garrison | Discovered new exit (range 13) 6602 | -8/Garrison | Entered Factory 6602 | -7/Factory | Evolved 2 slots: Propulsion x2 6637 | -7/Factory | Allied Derelicts emerged from ambush trap array 6789 | -7/Factory | Build established: Scavenger-Mutant 6945 | -7/Factory | P-60 Hacker assimilated allied UJ-8CQ(g) 7101 | -7/Factory | Discovered new exit (range 12) 7285 | -7/Factory | Garrison activated, responded to threat 7311 | -7/Factory | Build established: Bothacker-Mutant 7357 | -7/Factory | Identified exit to Garrison 7357 | -7/Factory | Entered Garrison 7392 | -7/Garrison | Expanded RIF knowledge: Signal Jamming 7446 | -7/Garrison | Garrison Relay disabled 7469 | -7/Garrison | Triggered checkpoint 7631 | -7/Garrison | Triggered checkpoint 7703 | -7/Garrison | Triggered checkpoint 7724 | -7/Garrison | Garrison Relay disabled 7775 | -7/Garrison | Discovered new exit (range 72) 7775 | -7/Garrison | Discovered new exit (range 53) 7775 | -7/Garrison | Discovered new exit (range 12) 7823 | -7/Garrison | Triggered checkpoint 7880 | -7/Garrison | Lost 3 allies 8053 | -7/Garrison | Entered Factory 8053 | -6/Factory | Accompanied by 4 allies 8053 | -6/Factory | Evolved 2 slots: Utility x2 8649 | -6/Factory | Build established: Bothacker-Gunner 8699 | -6/Factory | Found Prototype Processor 8725 | -6/Factory | Discovered new exit (range 11) 9012 | -6/Factory | Spotted B-75 Beast 9147 | -6/Factory | Garrison activated, responded to threat 9170 | -6/Factory | Identified exit to Garrison 9170 | -6/Factory | Entered Garrison 9195 | -6/Garrison | Lost 6 allies 9210 | -6/Garrison | Learned Factory security intel 9352 | -6/Garrison | Triggered checkpoint 9354 | -6/Garrison | Spotted B-75 Beast 9441 | -6/Garrison | Identified Exp. Targeting Computer 9483 | -6/Garrison | Lost 12 parts (1p4n2u5w) 9618 | -6/Garrison | Triggered checkpoint 9676 | -6/Garrison | Lost 3 parts (2n1w) 9719 | -6/Garrison | Expanded RIF knowledge: Structural Interface 9730 | -6/Garrison | Triggered checkpoint 9771 | -6/Garrison | Garrison Relay disabled 9816 | -6/Garrison | Discovered new exit (range 10) 9902 | -6/Garrison | Triggered checkpoint 9988 | -6/Garrison | Triggered checkpoint 10017 | -6/Garrison | Garrison Relay disabled 10065 | -6/Garrison | Discovered new exit (range 15) 10089 | -6/Garrison | Entered Factory 10626 | -6/Factory | Core integrity fell below 50% 10691 | -6/Factory | Discovered new exit (range 15) 10708 | -6/Factory | Identified exit to Garrison 10821 | -6/Factory | Garrison activated, responded to threat 10860 | -6/Factory | Lost 3 allies 10880 | -6/Factory | Entered Garrison 10880 | -6/Garrison | Accompanied by 1 ally 10980 | -6/Garrison | Triggered checkpoint 10999 | -6/Garrison | Garrison Relay disabled 11116 | -6/Garrison | Rescued a captive Derelict 11118 | -6/Garrison | Rescued a captive Derelict 11153 | -6/Garrison | Found Fusion Bomb Launcher 11287 | -6/Garrison | Spotted B-75 Beast 11304 | -6/Garrison | Triggered checkpoint 11307 | -6/Garrison | Destroyed B-75 Beast 11326 | -6/Garrison | Triggered checkpoint 11326 | -6/Garrison | Triggered checkpoint 11350 | -6/Garrison | Triggered checkpoint 11407 | -6/Garrison | P-60 Hacker assimilated allied Soldier 5a 11461 | -6/Garrison | Discovered new exit (range 14) 11467 | -6/Garrison | Lost 3 allies 11578 | -6/Garrison | Triggered checkpoint 11617 | -6/Garrison | Garrison Relay disabled 11639 | -6/Garrison | Triggered checkpoint 11797 | -6/Garrison | Garrison Relay disabled 11935 | -6/Garrison | Discovered new exit (range 13) 11946 | -6/Garrison | Expanded RIF knowledge: Coupler Efficiency 11964 | -6/Garrison | Triggered checkpoint 12016 | -6/Garrison | Garrison Relay disabled 12114 | -6/Garrison | Entered Factory 12114 | -5/Factory | Accompanied by 6 allies 12114 | -5/Factory | Evolved 2 slots: Power x1, Utility x1 12139 | -5/Factory | Identified exit to Garrison 12143 | -5/Factory | Entered Garrison 12143 | -5/Garrison | Accompanied by 6 allies 12181 | -5/Garrison | Triggered checkpoint 12213 | -5/Garrison | Garrison Relay disabled 12307 | -5/Garrison | Triggered checkpoint 12333 | -5/Garrison | Triggered checkpoint 12423 | -5/Garrison | Triggered checkpoint 12443 | -5/Garrison | Garrison Relay disabled 12489 | -5/Garrison | Expanded RIF knowledge: Alert ID Control 12504 | -5/Garrison | Discovered new exit (range 13) 12572 | -5/Garrison | Entered Factory 12572 | -4/Factory | Accompanied by 9 allies 12572 | -4/Factory | Evolved 2 slots: Utility x2 12588 | -4/Factory | Discovered new exit (range 14) 12897 | -4/Factory | Identified exit to Garrison 12928 | -4/Factory | Entered Garrison 12928 | -4/Garrison | Accompanied by 13 allies 12970 | -4/Garrison | Triggered checkpoint 13007 | -4/Garrison | Garrison Relay disabled 13122 | -4/Garrison | Triggered checkpoint 13130 | -4/Garrison | Spotted B-86 Titan 13138 | -4/Garrison | Triggered checkpoint 13140 | -4/Garrison | Assimilated Titan 7a with formatsys_high 13160 | -4/Garrison | Triggered checkpoint 13184 | -4/Garrison | Triggered checkpoint 13253 | -4/Garrison | Discovered new exit (range 9) 13257 | -4/Garrison | Found embedded Infiltrators 13298 | -4/Garrison | Triggered checkpoint 13313 | -4/Garrison | Garrison Relay disabled 13360 | -4/Garrison | Rescued a captive Derelict 13362 | -4/Garrison | Rescued a captive Derelict 13374 | -4/Garrison | Build established: Commander-Gunner 13453 | -4/Garrison | Expanded RIF knowledge: Threat Obfuscation 13482 | -4/Garrison | Triggered checkpoint 13510 | -4/Garrison | Discovered new exit (range 92) 13510 | -4/Garrison | Discovered new exit (range 52) 13510 | -4/Garrison | Discovered new exit (range 7) 13516 | -4/Garrison | Garrison Relay disabled 13617 | -4/Garrison | Garrison Relay disabled 13843 | -4/Garrison | Entered Factory 13843 | -4/Factory | Accompanied by 21 allies 13902 | -4/Factory | Spotted B-86 Titan 13914 | -4/Factory | Assimilated Titan 7b with formatsys_high 13928 | -4/Factory | Lost 3 allies 13980 | -4/Factory | Fabricated A-02 Transporter? 14008 | -4/Factory | Identified exit to Garrison 14083 | -4/Factory | Garrison activated, responded to threat 14090 | -4/Factory | Entered Garrison 14090 | -4/Garrison | Accompanied by 9 allies 14106 | -4/Garrison | Triggered checkpoint 14120 | -4/Garrison | Lost 10 allies 14140 | -4/Garrison | Triggered checkpoint 14185 | -4/Garrison | Lost 6 allies 14199 | -4/Garrison | Garrison Relay disabled 14229 | -4/Garrison | Found embedded Infiltrators 14338 | -4/Garrison | Triggered checkpoint 14341 | -4/Garrison | Triggered checkpoint 14349 | -4/Garrison | P-70 Sage assimilated allied DM-2EL(x) 14354 | -4/Garrison | Triggered checkpoint 14357 | -4/Garrison | Triggered checkpoint 14399 | -4/Garrison | Lost 5 allies 14418 | -4/Garrison | Garrison Relay disabled 14420 | -4/Garrison | Triggered checkpoint 14522 | -4/Garrison | Triggered checkpoint 14590 | -4/Garrison | Discovered new exit (range 44) 14590 | -4/Garrison | Discovered new exit (range 29) 14590 | -4/Garrison | Discovered new exit (range 37) 14614 | -4/Garrison | Expanded RIF knowledge: Autoassimilate 14668 | -4/Garrison | Build established: Botlord-Gunner 14703 | -4/Garrison | Entered Research 14703 | -3/Research | Accompanied by 7 allies 14703 | -3/Research | Evolved 2 slots: Utility x2 14713 | -3/Research | Identified exit to Garrison 14717 | -3/Research | Entered Garrison 14717 | -3/Garrison | Accompanied by 7 allies 14744 | -3/Garrison | Expanded RIF knowledge: Threat Obfuscation 14757 | -3/Garrison | Triggered checkpoint 14789 | -3/Garrison | Garrison Relay disabled 14815 | -3/Garrison | P-80 Master assimilated allied Archangel 7a 14843 | -3/Garrison | Lost 3 allies 14852 | -3/Garrison | Garrison Relay disabled 14931 | -3/Garrison | Lost 3 allies 15055 | -3/Garrison | Triggered checkpoint 15066 | -3/Garrison | Triggered checkpoint 15071 | -3/Garrison | Triggered checkpoint 15117 | -3/Garrison | Lost 8 allies 15188 | -3/Garrison | Discovered new exit (range 14) 15221 | -3/Garrison | Rewired Executioner 15231 | -3/Garrison | Rewired Executioner 15253 | -3/Garrison | Entered Research 15253 | -3/Research | Accompanied by 2 allies 15544 | -3/Research | Build established: Botlord-Tank 15645 | -3/Research | Identified exit to Garrison 15647 | -3/Research | Entered Garrison 15647 | -3/Garrison | Accompanied by 2 allies 15683 | -3/Garrison | Triggered checkpoint 15697 | -3/Garrison | Garrison Relay disabled 15729 | -3/Garrison | Rescued a captive Derelict 15752 | -3/Garrison | Spotted B-86 Titan 15767 | -3/Garrison | Assimilated Titan 8a with formatsys_high 15896 | -3/Garrison | Triggered checkpoint 15908 | -3/Garrison | Spotted B-86 Titan 15932 | -3/Garrison | Destroyed 13 combat bots 15947 | -3/Garrison | Destroyed B-86 Titan 16037 | -3/Garrison | Triggered checkpoint 16113 | -3/Garrison | Triggered checkpoint 16198 | -3/Garrison | Discovered new exit (range 9) 16346 | -3/Garrison | Found Relay Coupler [Proto] 16349 | -3/Garrison | Found Relay Coupler [Proto] 16351 | -3/Garrison | Found Relay Coupler [Proto] 16381 | -3/Garrison | Found Relay Coupler [Proto] 16556 | -3/Garrison | Triggered checkpoint 16571 | -3/Garrison | Garrison Relay disabled 16685 | -3/Garrison | Triggered checkpoint 16783 | -3/Garrison | Discovered new exit (range 11) 16806 | -3/Garrison | Triggered checkpoint 16816 | -3/Garrison | Expanded RIF knowledge: Watcher Feeds 16832 | -3/Garrison | Garrison Relay disabled 16945 | -3/Garrison | Entered Research 16945 | -2/Research | Accompanied by 6 allies 16945 | -2/Research | Evolved 2 slots: Power x2 17099 | -2/Research | Identified exit to Quarantine 17253 | -2/Research | Spotted B-90 Cyclops 17263 | -2/Research | Assimilated Cyclops 9a with formatsys_high 17347 | -2/Research | Entered Quarantine 17347 | -2/Quarantine | Accompanied by 4 allies 17620 | -2/Quarantine | Spotted Alpha 7 17627 | -2/Quarantine | Assimilated Alpha 7 with formatsys_high 17643 | -2/Quarantine | Found Alien Launcher 17730 | -2/Quarantine | Lost 3 allies 17732 | -2/Quarantine | Found Alien Artifact 17732 | -2/Quarantine | Identified Phase Redirector 17747 | -2/Quarantine | Found Alien Slashing Weapon 17747 | -2/Quarantine | Identified Sigix Broadsword 17788 | -2/Quarantine | Identified Sigix Terminator 17797 | -2/Quarantine | Found Core Stripper 17820 | -2/Quarantine | Found Core Cannon 18011 | -2/Quarantine | P-80 Master assimilated allied Cyclops 9a 18031 | -2/Quarantine | P-80 Master assimilated allied Expert 9a 18034 | -2/Quarantine | Scanned by Researcher 18036 | -2/Quarantine | Build established: Botlord-Mutant 18042 | -2/Quarantine | Allies destroyed Cyclops 9a 18238 | -2/Quarantine | Spotted Fortress 18240 | -2/Quarantine | Assimilated Fortress with formatsys_high 18384 | -2/Quarantine | Discovered new exit (range 6) 18384 | -2/Quarantine | Discovered new exit (range 6) 18461 | -2/Quarantine | Entered Section 7 18461 | -2/Section 7 | Accompanied by 2 allies 18506 | -2/Section 7 | Build established: Botlord-Tank 18563 | -2/Section 7 | Garrison activated, responded to threat 18632 | -2/Section 7 | Destroyed 7 combat bots 18664 | -2/Section 7 | Identified exit to Garrison 18664 | -2/Section 7 | Entered Garrison 18726 | -2/Garrison | Triggered checkpoint 18751 | -2/Garrison | System corruption reached 10% 18798 | -2/Garrison | Garrison Relay disabled 18813 | -2/Garrison | Garrison Relay disabled 18840 | -2/Garrison | Rescued a captive Derelict 18847 | -2/Garrison | Triggered checkpoint 18940 | -2/Garrison | Spotted B-90 Cyclops 18971 | -2/Garrison | Spotted B-90 Cyclops 18989 | -2/Garrison | Phase Generator disabled 18995 | -2/Garrison | Triggered checkpoint 19015 | -2/Garrison | Destroyed B-90 Cyclops 19027 | -2/Garrison | Lost 5 parts (2p3u) 19112 | -2/Garrison | Core integrity fell below 50% 19179 | -2/Garrison | Lost 11 parts (4p1n3u3w) 19216 | -2/Garrison | Destroyed B-90 Cyclops 19271 | -2/Garrison | Triggered checkpoint 19280 | -2/Garrison | Triggered checkpoint 19344 | -2/Garrison | Expanded RIF knowledge: Zone Cloak 19351 | -2/Garrison | Discovered new exit (range 12) 19396 | -2/Garrison | Triggered checkpoint 19417 | -2/Garrison | Garrison Relay disabled 19539 | -2/Garrison | Build established: Botlord-Mutant 19590 | -2/Garrison | Found Adv. Powered Armor 19593 | -2/Garrison | Found Adv. Powered Armor 19616 | -2/Garrison | Learned Access security intel 19628 | -2/Garrison | Discovered new exit (range 11) 19673 | -2/Garrison | Entered Access 19673 | -1/Access | Accompanied by 3 allies 19673 | -1/Access | Evolved 2 slots: Utility x1, Weapon x1 20908 | -1/Access | Destroyed 8 combat bots 20952 | -1/Access | Garrison activated, responded to threat 20971 | -1/Access | Lost 15 parts (3p3n7u2w) 21108 | -1/Access | Lost 3 parts (1p1n1w) 21211 | -1/Access | System corruption reached 10% 21221 | -1/Access | Core integrity fell below 50% 21250 | -1/Access | Lost 3 parts (1n2u) 21530 | -1/Access | Lost 11 parts (1p4n4u2w) 21598 | -1/Access | Spotted B-99 Colossus 21648 | -1/Access | Fired Sigix Terminator 21648 | -1/Access | Destroyed B-99 Colossus 21650 | -1/Access | Lost 9 parts (3p2n2u2w) 21670 | -1/Access | Discovered new exit (range 10) 21673 | -1/Access | First assault squad dispatched 21679 | -1/Access | Identified exit to Surface 21680 | *** | Escaped! Last Messages --------------- 21619_ Phase Gun destroyed. 21627_ Slug penetrates Wall. 21633_ ALERT: Potential suspicious activity detected, Programmers report to Access Zone 6G. 21633_ Door malfunctions. 21634_ Slug penetrates Wall. 21635_ System corrupted: Heat flow error (+258). 21648_ Sigix Terminator expended. 21648_ X-87 Electro destroyed. 21666_ The unstable cave ceiling collapses. 21670_ EXIT=FOUND 21670_ U-05 Engineer lays Concrete. 21671_ The unstable cave ceiling collapses. 21671_ U-05 Engineer lays Concrete. 21673_ ALERT: Unidentified disturbance in Zone 8Q, assault force dispatched. 21673_ U-05 Engineer lays Concrete. 21677_ U-05 Engineer builds a Wall. 21679_ EXIT=IDENTIFIED: SURFACE Map ----- +----------------------------------------------------+ | ?????????######"""""" "????? ??????? | | ?????????# "" " ???? ??????? | | ?????????# "" " ? ???????? | | ?????????# "" " ????????? | | ?????????# " """"#+######+#?? | | ?????????# " """" ### | | ?????????# " = ! | | ?????????# " !%########## | | ?????????# """ """""" "#???????? | | ?????????#####"""""" " " # ? | | ?????????????## " ]] #?? ?? | | ??????????????# " ????????? | | ??????????????# # ????????? | | ??????????????## ???????? | | ???????????????# ;" "?????? | | ???????????????## " ; " "????? | | ????????????????# ;;;; ; ? ???? | | ????????????????# " " ?? ??? | | ????????????????## " # " ???#???? | | ?????????????????# ;;; " " ???????? | | ?????????????????##""""""";;;; ;;""""# " ??????? | | ??????????????????""" " ??????? | | ????????????????????" " ??????? | | ????????????????????" """" "#???????? | | ????????????????????" " " #????????? | | ????????????????????" " "@ " " #????????? | | ????????????????????" " "" " " #????????? | | ????????????????????"?" " "? #????????? | | ??????????????????????"""""" "? #????????? | | ???????????????????????????? "??" """ #????????? | | ????????????????????????????? "???T""" ?????????? | | ?????????????????????????????#"??????????????????? | | ?????????????????????????????????????????????????? | | ?????????????????????????????????????????????????? | | ?????????????????????????????????????????????????? | | ?????????????????????????????????????#???????????? | | ?????????????????????????????????????# ??????????? | | ?????????????????????????????????????# ?###?##??## | | ?????????????????????????????????????# ?# ""G"" | | ??????????????????????????????????##?# ?# "" "" | | ??????????????????????????????????? ?# ?# | | ??????????????????????????????????? # # ? | | ?????????####??###??????????????? ?? # # ? | | ????????# ? #?????????????? ?+ + ? | | ????????# #?????????????? # !# ?? | | ???????? "" #???????????????? | | ????????# "" #????????????????## ### | | ????????# "" #???????????### ## | | ????????# S #???????????# % # #"# | | ????????# "" #???????????# %* * % =**= | +----------------------------------------------------+ Best States ------------- Heat Dissipation 140 Coolant Potential 100 Energy Generation 85 Energy Capacity 940 Matter Stores 300 Matter Capacity 300 Sight Range 16 Robot Scan Range 16 Terrain Scan Density 10 Cloak Strength 5 Armor Coverage 625 Resistance: TH 15 Evasion (%) 70 Targeting Accuracy 12 Launcher Accuracy 40 Target Analysis 8 Core Analysis 6 Offensive Hacking 26 Relay Coupler Types 5 Relay Coupler Value 159 Item Schematics ----------------- Cld. Gravmag System | -4/Factory | Extracted Impulse Thruster | -4/Factory | Extracted Phase Cannon | -4/Factory | Extracted Vibroblade | -2/Quarantine | Archive Exp. Heat Sink | -2/Quarantine | Archive Exp. Biometal Medium Treads | -2/Quarantine | Archive Exp. Cloaking Device | -2/Quarantine | Archive Cld. Field Propulsion Drive | -2/Section 7 | Archive Hds. Centrium Heavy Treads | -2/Section 7 | Archive Hvy. Wave Gun | -2/Section 7 | Archive Adv. Gravity Neutralizer | -2/Section 7 | Archive Robot Schematics ------------------ M-13 Machinist | -9/Materials | Hacked C-55 Analyst | -2/Quarantine | Archive K-01 Serf | -2/Quarantine | Archive X-87 Electro | -2/Quarantine | Archive G-73 Enforcer | -2/Quarantine | Archive R-06 Scavenger | -2/Section 7 | Archive Fabricated ------------ A-02 Transporter | x1 | -4/Factory | Preloaded Repaired ---------- Mak. Shrapnel Gun | 11% | -9/Materials Med. Armor Plating | 30% | -9/Materials Imp. Aluminum Leg | 36% | -9/Materials Alien Tech Used ----------------- Phase Redirector Sigix Broadsword Core Cannon Sigix Terminator Achievements -------------- None Challenges ------------ None Game ------ Seed TerrabombHybridDissipator Manual? 0 Play Time 04:59:01 Cumulative 460.4 hours Start 2025.08.12 @ 12:37:26 End 2025.08.14 @ 18:40:48 Sessions 16 Manual Loads 0 Difficulty Rogue Special Mode None Game No. 203 Rogue 203 Adventurer 0 Explorer 0 Win Type 0 Total 31 Types 13/2/5/2/5/1/0/2/0/1 Lore% 94 Gallery% 85 Achievement% 79 Wizard Run 0 Options --------- Layout 1 ASCII 0 Keyboard 0 Movement Numpad Keybinds 0 Fullscreen 1 Font 24/Smallcaps Map View 50x35 Zoom Use 0% Tactical HUD 1 Map Filters NONE Filters NONE Steam 1 RUN: c2aab6b6-9cc5-4382-973f-e2a9834a95e3